Workbook

Sheet 案件情報
B1: UPDATE ： 2025/2/27
B4: 貴社名(ご担当者様) | N4: 様 | O4: 既存モデル | U4: シリアル番号
B5: お客様(EU)名 | N5: 様 | O5: 発注時期 | Q5: 要選択 | S5: Opportunity ID
B7: LPAR構成希望 | F7: 要選択 | H7: 要選択 | O7: ※お打ち合わせご希望の場合には、partnercontact@i-guazu.co.jp へご依頼ください。
A8: =CONCATENATE(F7,H8) -> 要選択要選択 | B8: 既存機同等希望(NonLPAR) | H8: 要選択 | L8: ※｢はい｣を選択時、各HW保守のご指定までお願いいたします。 (HW：既存機を元に構成 SW：既存踏襲 / ご指定箇所がある場合は｢■ご要望｣欄に記入ください)
B9: ■ご要望 ※下記に記載できないHWの要望やSWに関する詳細な要望を記入ください。
B11: 各HW | D11: オーダー | F11: 用途 | H11: 要選択 | K11: 要選択
D12: Primary Machine | H12: M/T： | I12: 必須 | K12: S/N： | L12: 必須 | N12: CBU機のみ ※未導入の場合は機械グループを指定
D13: 電圧指定 | H13: 要選択
D14: 保守締結タイプ | F14: 年数 | H14: ExpertCare | K14: 要選択 | N14: ※ExpertCare設定のない製品は同等で選定
D15: サービスレベル | F15: SIオプション | H15: 要選択 | K15: MR | N15: ※MR (メディアリテンションサービス) ： ハードディスク/メディアお渡し (3年/5年のみ)
D16: 設定サポート | H16: 不要 | N16: ※設定サポートはPowerとStorageでサポート内容が異なりますので、ご注意ください。
N17: Power： | P17: https://www.ibm.com/docs/ja/announcements/q2-2020-si-release-additional-hw-products
N18: Storage： | P18: https://www.ibm.com/docs/ja/announcements/gl-si-storage-52k-72k-mss-3q-2021?region=AP
B19: SW | D19: 主要ライセンス Option Edition等/数量 | H19: Rational Development Studio for i (WDS) | N19: Rational Developer for i (RDW) | T19: Backup Recovery and Media Services for i (BR2)
H20: 要選択 | L20: 要選択 | N20: 要選択 | R20: 要選択 | T20: 要選択 | X20: OSと同数
H21: PowerHA | N21: ※他に必要なSWがある場合はご要望欄に記入ください。
H22: 要選択 | L22: 要選択
B23: 希望する成果物 (config以外、簡易価格資料等) | R23: 希望する成果物を左欄に記入ください。 成果物が多いほど回答まで時間が必要です。
B24: 連絡事項 | H24: ◆AIX/Linux/Storageの依頼はこのシートとは別に用意している専用の要件シートに記入いただき、弊社にご依頼ください。 ◆配送費は、Premiumで構成しております。 ◆リプレース構成時WDSとRDWは移行構成を前提としております。 ★OS移転のプロセスが変更になり原則OS移転はしない前提で作成いたします。OS移転をご希望の際はご要望欄にご記載ください。 ★OS移転は既存SWMA契約がある前提です。

Sheet 構成シート
B2: モデル | D2: 要選択
B3: プロセッサー・カードの種類 機械G | D3: 要選択
B4: HW機械グループ | D4: =IF(AND(OR(LEFT($D$2,4)="1014",LEFT($D$2,4)="1012"),OR(LEFT($D$3,2)="4C",LEFT($D$3,2)="1C")),"P05",HLOOKUP($D$2,メンテナンス用!$P$61:$V$81,2,FALSE)) -> 
B5: Primary Machine | D5: =案件情報!I12 -> 必須 | E5: =案件情報!L12 -> 必須
B6: 1CoreあたりのCPW値(※1) | D6: =INDEX(CPW表!$AK$4:$AK$316,MATCH(LEFT($D$2,4)&$D$3&$D$8&"core",INDEX(CPW表!$AF$4:$AF$316&CPW表!$AG$4:$AG$316&CPW表!$AH$4:$AH$316,),0)) -> 
B7: プロセッサー・カードの枚数 | D7: 要選択
B8: Core総数 | D8: =LEFT(D3,SEARCH("core",D3,1)-1)*D7 -> 
B9: プロセッサー・ライセンス数(IBM i) | D9: =D31 -> 0
B10: ユーザー数 (IBM i) | D10: 要選択
B11: エンタープライズ・エネーブルメント数 | D11: 要選択
A12: =案件情報!H8 -> 要選択 | B12: NonLPAR/LPAR | D12: =案件情報!F7 -> 要選択
B13: コンソール | D13: 要選択
B14: HMC&TF5 | D14: 要選択
B15: 筐体タイプ | D15: 要選択
B16: 一次言語 | C16: 二次言語 | D16: 日本語 漢字 | E16: 不要
B17: 電源 | D17: =案件情報!H13 -> 要選択
B18: CPU Deconfiguration | D18: 不要
B19: メディア出荷 | D19: 有
B20: ｉOS プリロード | D20: 要選択
B21: 元マシンのモデル | D21: =案件情報!Q4 -> 0
A22: =案件情報!H11 -> 要選択 | B22: シリアルNO. | D22: =案件情報!W4 -> 0
B23: ITL 月数 | C23: =INDEX(ITL,,MATCH(D2,モデル3_要件シート,)) ->  | D23: 要選択
B24: ITL 対象(構成担当者欄) | D24: 選択不要
B25: (※1)最大CPWをコア数で単純割りした1コア分の参考CPW値です。/ (※2)メモリー合計の2割程度がHypervisor用として使用されるため各区画に割り当てできる容量は表示より減ります。
E26: ※記入方法は｢構成シート (入力サンプル)｣を参照ください(クリック)
B27: 区画の情報 | D27: 合計 | E27: P01 (NonLPAR) | F27: =COLUMN()-4 -> 2 | G27: 3 | H27: 4 | I27: 5 | J27: 6 | K27: 7 | L27: 8 | M27: 9 | N27: 10 | O27: DLPAR (Switch) | P27: 備考
B28: 区画名
B29: OS | E29: i7.5
B30: メモリー(GB) ※2 | D30: =SUM(E30:O30) -> 0
B31: プロセッサー数 | C31: IBM i | D31: 0
A32: =IF(COUNTA(E32:O32)>0,"","1") ->  | B32: CPW値(※1) | E32: =$D$6*E31 ->  | F32: =$D$6*F31 -> 
A33: =IF(COUNTA(E33:O33)>0,"","1") -> 1 | B33: プロセッサー数 | C33: VIOS | D33: 0
A34: =IF(COUNTA(E34:O34)>0,"","1") -> 1 | B34: プロセッサー数 | C34: AIX | D34: 0
A35: =IF(COUNTA(E35:O35)>0,"","1") -> 1 | B35: プロセッサー数 | C35: Linux | D35: 0
A36: =IF(COUNTA($E$37:$O$38)>0,"","1") -> 1 | B36: プロセッサー数別ライセンス | D36: 合計 | E36: =COLUMN()-4 -> 1 | F36: =F27 -> 2 | G36: =G27 -> 3 | H36: 4 | I36: 5 | J36: 6 | K36: 7 | L36: 8 | M36: 9 | N36: 10 | O36: DLPAR | P36: 備考
A37: =IF(COUNTA($E$37:$O$37)>0,"","1") -> 1 | B37: PowerHA for i | C37: IBM i | D37: =ROUNDUP(SUMIF(E37:O37,"〇",E31:O31),0) -> 0
A38: =IF(COUNTA($E$38:$O$38)>0,"","1") -> 1 | B38: PowerHA | C38: AIX | D38: =ROUNDUP(SUMIF(E38:O38,"〇",E34:O34),0) -> 0
A39: =IF(COUNTA($E$41:$O$43)>0,"","1") -> 1 | B39: 内蔵NVMe | C39: ※個数指定 | D39: 合計 | E39: =COLUMN()-4 -> 1 | F39: =F27 -> 2 | G39: 3 | H39: 4 | I39: 5 | J39: 6 | K39: 7 | L39: 8 | M39: 9 | N39: 10 | O39: DLPAR | P39: 備考
A40: =IF(COUNTA($E$41:$O$43)>0,"","1") -> 1 | B40: 保護レベル(※OS Mirrorのみ) | E40: OS Mirror
A41: =IF(COUNTA(E41:O41)>0,"","1") -> 1 | B41: 800GB | D41: =SUM(E41:O41) -> 0
A42: =IF(COUNTA(E42:O42)>0,"","1") -> 1 | B42: 1.6TB | D42: =SUM(E42:O42) -> 0
A43: =IF(COUNTA(E43:O43)>0,"","1") -> 1 | B43: 3.2TB | D43: =SUM(E43:O43) -> 0
A44: =IF(COUNTA($E$46:$O$48)>0,"","1") -> 1 | B44: 外部ストレージ (FS 5k,7k,9k等） | D44: 合計 | E44: =E39 -> 1 | F44: =F27 -> 2 | G44: 3 | H44: 4 | I44: 5 | J44: 6 | K44: 7 | L44: 8 | M44: 9 | N44: 10 | O44: DLPAR | P44: 備考
A45: =IF(COUNTA($E$46:$O$48)>0,"","1") -> 1 | B45: ディスク保護レベル | E45: 選択
A46: =IF(COUNTA(E46:O46)>0,"","1") -> 1 | B46: モデル選択 | C46: ディスク種類選択 | D46: =SUM(E46:O46) -> 0
A47: =A46 -> 1 | C47: キャッシュ選択 | D47: -
A48: =A46 -> 1 | C48: インタフェース選択 | D48: -
A49: =IF(COUNTA($E$50:$O$55)>0,"","1") -> 1 | B49: テープ・DVD | C49: 接続 | D49: 合計 | E49: =E39 -> 1 | F49: =F27 -> 2 | G49: 3 | H49: 4 | I49: 5 | J49: 6 | K49: 7 | L49: 8 | M49: 9 | N49: 10 | O49: DLPAR | P49: 備考
A50: =IF(COUNTA(E50:O50)>0,"","1") -> 1 | B50: ポータブルDVD | C50: USB | D50: =SUM(E50:O50) -> 0
A51: 1 | B51: 7226-1U3 | D51: 0
A52: 1 | B52: └LTO8 | C52: SAS | D52: 0
A53: 1 | B53: TS4300基本 | D53: 0
A54: 1 | B54: └LTO8 | C54: SAS | D54: 0
A55: 1 | B55: └LTO9 | C55: SAS | D55: 0
A56: =IF(COUNTA($E$57:$O$60)>0,"","1") -> 1 | B56: LAN | C56: ※ポート数指定 | D56: 合計 | E56: =E39 -> 1 | F56: =F27 -> 2 | G56: 3 | H56: 4 | I56: 5 | J56: 6 | K56: 7 | L56: 8 | M56: 9 | N56: 10 | O56: DLPAR | P56: 備考
A57: =IF(COUNTA(E57:O57)>0,"","1") -> 1 | B57: 1GbE (RJ45) | D57: =SUM(E57:O57) -> 0
A58: =IF(COUNTA(E58:O58)>0,"","1") -> 1 | B58: 1/10GbE(RJ45) | D58: =SUM(E58:O58) -> 0
A59: =IF(COUNTA(E59:O59)>0,"","1") -> 1 | B59: 10GbE SFP | D59: =SUM(E59:O59) -> 0
A60: =IF(COUNTA(E60:O60)>0,"","1") -> 1 | B60: 25GbE SFP | D60: =SUM(E60:O60) -> 0
A61: =IF(COUNTA($E$62:$O$64)>0,"","1") -> 1 | B61: ファイバーチャネル ※枚数指定 | D61: 合計 | E61: =E39 -> 1 | F61: =F27 -> 2 | G61: 3 | H61: 4 | I61: 5 | J61: 6 | K61: 7 | L61: 8 | M61: 9 | N61: 10 | O61: DLPAR | P61: 備考
A62: =IF(COUNTA(E62:O62)>0,"","1") -> 1 | B62: 外部DISK用 | C62: 32Gb 2port | D62: =SUM(E62:O62) -> 0
A63: =IF(COUNTA(E63:O63)>0,"","1") -> 1 | B63: テープ用 | C63: 32Gb 2port | D63: =SUM(E63:O63) -> 0
A64: =IF(COUNTA(E64:O64)>0,"","1") -> 1 | B64: VTL用 | C64: 32Gb 2port | D64: =SUM(E64:O64) -> 0
A65: =IF(COUNTA($E$66:$O$67)>0,"","1") -> 1 | B65: SANスイッチ | C65: 帯域 | D65: 合計 | E65: =E39 -> 1 | F65: =F27 -> 2 | G65: 3 | H65: 4 | I65: 5 | J65: 6 | K65: 7 | L65: 8 | M65: 9 | N65: 10 | O65: DLPAR | P65: 備考
A66: =IF(COUNTA(E66:O66)>0,"","1") -> 1 | B66: SAN24B | C66: 16Gbps | D66: =SUM(E66:O66) -> 0 | P66: ※ケーブルはアクティブポート数分構成
A67: =IF(COUNTA(E67:O67)>0,"","1") -> 1
B70: 消費スロット数（SDC構成担当者用欄）
B71: アダプター種類 | D71: 合計枚数 | E71: =E39 -> 1 | F71: =F27 -> 2 | G71: 3 | H71: 4 | I71: 5 | J71: 6 | K71: 7 | L71: 8 | M71: 9 | N71: 10 | O71: =O39 -> DLPAR
B72: CEC NVMeコントローラー | D72: =SUM(E72:O72) -> 0 | P72: CEC NVMeコントローラー
B73: SAS | D73: 0 | P73: SAS
B74: LAN 1/10G(RJ45) | D74: 0 | P74: LAN 1/10G(RJ45)
B75: LAN 10G(SR) | D75: 0 | P75: LAN 10G(SR)
B76: USB | D76: 0 | P76: USB
B77: Fibre | D77: 0 | P77: Fibre
D78: 0
B79: 合計 | D79: =SUM(D72,D73,D74,D75,D76,D77,D78) -> 0 | E79: =SUM(E72,E73,E74,E75,E76,E77,E78) -> 0 | F79: 0 | G79: 0 | H79: 0 | I79: 0 | J79: 0 | K79: 0 | L79: 0 | M79: 0 | N79: 0 | O79: 0
B80: モデル別PCI最大搭載枚数 | D80: =INDEX(モデル別最大スロット数,,MATCH(D2,モデル3_要件シート,)) ->  | E80: ←※ドロワー接続用の光アダプター数を除く枚数です。（※S1014の4コア構成は最大5枚）
B82: ドロワー接続アダプター枚数

Sheet 構成シート (入力サンプル)
B1: ※構成シートに戻る
B3: サンプル（下記をクリック） | C3: 論理区画(LPAR)の作成方法
B4: NonLPAR | C4: 1区画で利用
B5: 物理LPAR | C5: 物理ディスクを利用
B6: 仮想LPAR （ホスト兼本番区画） | C6: IBM i をホストとして仮想ディスクを利用
B7: 仮想LPAR （ホスト専用区画）
B8: 仮想LPAR （仮想LPAR_VPM ※HMCなし）
B9: VIOS | C9: VIOS をホストとして仮想ディスクを利用
A12: 戻る
A40: 戻る
A76: 戻る
A113: 戻る
A150: 戻る
A189: 戻る

Sheet マスター_要件シート用 (hidden)
A2: 保守契約タイプ | B2: ExpertCare
A4: 年数 | B4: 5年
B5: 4年
B6: 3年
A9: サービスレベル | B9: 要選択
B10: Basic ※9x5
B11: Advanced
B12: Premium

Sheet メンテナンス用 (hidden)
A3: ディスク | B3: ディスク保護 | C3: 外部ストレージ | E3: テープ装置 | F3: テープ接続 | G3: Fibre種類 | H3: 導入場所 | I3: 外部ストレージ
A4: 283GB (15k) | B4: Dev.Lv. | C4: モデル選択 | D4: V7000 | E4: RDX(内蔵) | F4: SAS | G4: 16Gb 2port | H4: CEC | I4: モデル選択 | J4: FS5015 | K4: FS5045 | L4: FS5300 | M4: FS7300 | N4: FS9500 | O4: FS5200(24.12.31WD) | P4: V7000_724_10.17WD | Q4: V7000F_AF6_8.15WD | R4: FS900_11.20WD | S4: FS9110_10.17WD | T4: FS9150_10.17WD | U4: FS5100 | V4: FS7200 | W4: FS9200 | X4: FS5035
A5: 571GB (10k) | B5: IOA Lv. | C5: V5010E | D5: NVMe | E5: 7226-1U3 | F5: FIBRE | G5: 32Gb 2port | H5: EXP24Sx | J5: 外部ディスク玉
A6: 571GB (15k) | B6: 仮想 | C6: V5030E | D6: Flash/SSDs | E6: TS2270(24.6.30WD) | F6: USB(RDX) | G6: 32Gb 4port | I6: ディスク種類選択 | J6: ディスク種類選択 | K6: ディスク種類選択 | L6: ディスク種類選択 | M6: ディスク種類選択 | N6: ディスク種類選択 | O6: ディスク種類選択 | P6: ディスク種類選択 | Q6: ディスク種類選択 | R6: ディスク種類選択 | S6: ディスク種類選択 | T6: ディスク種類選択 | U6: ディスク種類選択 | V6: ディスク種類選択 | W6: ディスク種類選択 | X6: ディスク種類選択
A7: 856GB (10k)※5/19WD | B7: RAID5 | C7: V5100 | D7: HDD | E7: TS2280 | G7: 64Gb 2port | J7: Flash_SSDｓ | K7: Flash_SSDｓ | L7: FCM | M7: FCM | N7: FCM | O7: FCM | P7: NVMe基本筐体 | Q7: Flash_SSDｓ | R7: FlashModule | S7: NVMe_基本筐体 | T7: NVMe_基本筐体 | U7: NVMe基本筐体 | V7: FCM | W7: FCM | X7: Flash_SSDｓ
A8: 1.1TB (10k)※5/19WD | B8: RAID6 | C8: V7000 | E8: TS2290 | J8: HDD | K8: HDD | L8: FlashDrive | M8: FlashDrive | N8: FlashDrive | O8: FlashDrive | P8: Flash_SSDｓ | S8: FlashDrive_拡張筐体 | T8: FlashDrive_拡張筐体 | U8: FlashDrive_拡張筐体 | V8: FlashDrive | W8: FlashDrive | X8: HDD
A9: 1.7TB (10k)※5/19WD | B9: LVM(SW) | C9: FS9110 | D9: V7000F | E9: TS2900 | L9: HDD(拡張筐体のみ) | M9: HDD(拡張筐体のみ) | O9: HDD(拡張筐体のみ) | P9: HDD | U9: HDD | V9: HDD(拡張筐体のみ)
A10: 387GB SSD | B10: RAID10(HW) | C10: FS9150 | D10: Flash/SSDs | E10: TS4300基本
A11: 775GB SSD | C11: FS900 | E11: TS4300拡張 | I11: キャッシュ選択 | J11: キャッシュ選択 | K11: キャッシュ選択 | L11: キャッシュ選択 | M11: キャッシュ選択 | N11: キャッシュ選択 | O11: キャッシュ選択
A12: 931GB RI SSD | D12: FS900 | E12: └LTO9 | J12: 32GB | K12: 32GB | L12: 64GB (一部機能使用不可) | M12: 256GB | N12: 1024GB | O12: 64GB
A13: 1.55TB SSD | D13: FlashModule | E13: └LTO8 | J13: 64GB | K13: 64GB(重複排除必須） | L13: 256GB | M13: 768GB | N13: 2048GB | O13: 256GB
A14: 1.86TB SSD | B14: 外部ストレージ保護 | C14: 外部ディスク | E14: └LTO7(24.6.30WD) | L14: 512GB | M14: 1536GB | N14: 3072GB | O14: 512GB
A15: 3.72TB RI SSD | B15: 選択 | C15: V50x0 | D15: FS91x0 | E15: └RDX
A16: 7.45TB RI SSD | B16: DRAID1 | C16: ディスク種類選択 | D16: NVMe | I16: インタフェース選択 | J16: インタフェース選択 | K16: インタフェース選択 | L16: インタフェース選択 | M16: インタフェース選択 | N16: インタフェース選択 | O16: インタフェース選択
A17: AIX,VIOS用 300GB | B17: DRAID5 | C17: Flash/SSDs | D17: Flash/SSDs | J17: 16G FC | K17: 16G FC | L17: 32G FC | M17: 32G FC | N17: 32G FC | O17: 16G FC
A18: AIX,VIOS用 600GB | B18: DRAID6 | C18: HDD | J18: 1G iSCSI | K18: 1G iSCSI | L18: 64G FC | M18: 64G FC | N18: 64G FC | O18: 32G FC
A19: AIX,VIOS用 600GB (10k) | J19: 10G iSCSI | K19: 10G iSCSI | L19: 10G iSCSI | M19: 25GbE(iWARP) | N19: 25GbE(iWARP) | O19: 10G iSCSI
A20: AIX,VIOS用 900GB (10k)※5/19WD | C20: V5100 | J20: 12G SAS | K20: 12G SAS | L20: 25/10GbE(オンボード) | M20: 100GbE | N20: 100GbE | O20: 25GbE(iWARP)
A21: AIX,VIOS用 1.2TB (10k)※5/19WD | C21: NVMe | M21: 12G SAS | O21: 12G SAS
A22: AIX,VIOS用 1.8TB (10k)※5/19WD | B22: T-RAID5 | C22: Flash/SSDs
A23: AIX,VIOS用 387GB SSD | B23: T-RAID6 | C23: HDD
A24: AIX,VIOS用 931GB RI SSD
A25: AIX,VIOS用 1.55TB SSD | C25: V5100F
A26: AIX,VIOS用 1.86TB SSD | C26: NVMe
A27: AIX,VIOS用 3.72TB RI SSD | C27: Flash/SSDs
A28: AIX,VIOS用 7.45TB RI SSD
A32: NVMe
A33: 800GB
A34: 1.6TB
A35: 3.2TB
A36: 6.4TB
A37: 15.3TB (Mainstream)
A45: イーサネット | B45: 通信 | C45: その他 | D45: コンソール | E45: ラック | F45: OS/バージョン | G45: SWMA | H45: メディア | I45: Web Query | J45: 電源 | K45: 一次言語 | M45: 二次言語
A46: 1GbE(RJ45) | B46: V.24 | C46: Graphic Adapter(※2021/12/14営業終了) | D46: 要選択 | E46: 要選択 | F46: ← | G46: 1年 | H46: 有 | I46: WQE | J46: 要選択 | K46: 日本語 漢字 | M46: 不要
A47: 1/10GbE(RJ45) | B47: モデム (※2020/12末営業終了) | C47: SANスイッチ | D47: 既存同等 | E47: 42U | F47: i7.5 | G47: 2年 | H47: 無（ESD） | I47: WQS | J47: 100V | K47: 日本語ユニバーサル | M47: 日本語 漢字
A48: 10GbE SFP | B48: V.35 (※2021/3/5営業終了) | D48: LANコンソール | E48: 36U | F48: i7.4 | G48: 3年 | I48: WQB | J48: 200V | K48: 英語U/C DBCS | M48: 日本語ユニバーサル
A49: 25GbE SFP | B49: X.21 (※2021/3/5営業終了) | D49: HMCコンソール | E49: ラック無し | F49: VIOS | G49: 4年 | I49: WQR | K49: 英語U/L DBCS | M49: 英語U/C DBCS
A50: 100GbE SFP | D50: LANコンソール(VPM) | E50: デスクサイド | F50: AIX 7.3 | G50: 5年 | K50: 英語U/L SBCS | M50: 英語U/L DBCS
F51: AIX 7.2 | K51: 他（記入） | M51: 英語U/L SBCS
F52: RHEL | M52: 英語三種
F53: SLES 15 | M53: 他（記入）
F56: ライセンス体系
F57: 要選択
F58: サブスクリプション
F59: 永続ライセンス
A60: モデル
A61: 720：8202-E4D(W/D) | B61: 740：8205-E6D(W/D) | C61: 750：8408-E8D(W/D) | D61: 760：9109-RMD(W/D) | E61: 710：8231-E1D(W/D) | F61: 730：8231-E2D(W/D) | G61: 814:8286-41A(W/D) | H61: 824:8286-42A(W/D) | I61: 914:9009-41A(W/D) | J61: 924:9009-42A(W/D) | K61: 914:9009-41G | M61: 924:9009-42G | N61: 922:9009-22G | O61: 980:9080-M9S | P61: 1012:9028-21B | Q61: 1014:9105-41B | R61: 1022:9105-22B(1022s) | S61: 1022:9105-22A | T61: 1024:9105-42A(P20) | U61: 1024:9105-42A(P30) | V61: 1080:9080-HEX | W61: 822:8284-22A(W/D) | X61: 812:8284-21A(W/D) | Y61: 870:9119-MME(W/D) | Z61: 880:9119-MHE(W/D) | AA61: 870C:9080-MME(W/D) | AB61: 880C:9080-MHE(W/D)
A62: P10 | B62: P20 | C62: P20 | D62: P30 | E62: P10 | F62: P20 | G62: P10 | H62: P20 | I62: P10 | J62: P20 | K62: P10 | M62: P20 | N62: P10 | O62: P30 | P62: P10 | Q62: P10 | R62: P10 | S62: P10 | T62: P20 | U62: P30 | V62: P30 | W62: P10 | X62: P05 | Y62: P30 | Z62: P30 | AA62: P30 | AB62: P30
A63: P05 | E63: P05 | G63: P05 | I63: P05 | K63: P05 | P63: P05 | Q63: P05
A64: 6core 3.6GHz P7+ | B64: 6core 4.2GHz P7+ | C64: 8core 3.5GHz P7+ | D64: 12core 3.136GHz P7+ | E64: 4core 3.6GHz P7+ | F64: 4core 4.3GHz P7+ | G64: 4core 3.02GHz P8 | H64: 6core 3.89GHz P8 | I64: 4core 2.3-3.8GHz P9 | J64: 8core 3.8-4.0GHz P9 | K64: 4core 2.3-3.8GHz P9 | M64: 8core 3.8-4.0GHz P9 | N64: 8core 3.4-3.9GHz P9 | O64: 24core 3.58-3.9GHz P9 | P64: 要選択 | Q64: 要選択 | R64: 要選択 | S64: 要選択 | T64: 要選択 | U64: 要選択 | V64: 要選択 | W64: 6core 3.89GHz P8 | X64: 1core 3.02GHz P8 | Y64: 32core 4.02GHz P8 | Z64: 32core 4.35GHz P8 | AA64: 32core 4.02GHz P8 | AB64: 32core 4.35GHz P8
A65: 4core 3.6GHz P7+ | B65: 8core 3.6GHz P7+ | C65: 8core 4.0GHz P7+ | D65: 12core 3.416GHz P7+ | E65: 6core 4.2GHz P7+ | F65: 6core 4.2GHz P7+ | G65: 6core 3.02GHz P8 | H65: 8core 4.15GHz P8 | I65: 6core 2.3-3.8GHz P9 | J65: 10core 3.5-3.9GHz P9 | K65: 6core 2.3-3.8GHz P9 | M65: 10core 3.5-3.9GHz P9 | N65: 10core 2.9-3.8GHz P9 | O65: 32core 3.9-4.0GHz P9 | P65: 1core 3.00-3.90GHz P10 | Q65: 4core 3.00-3.90GHz P10 | R65: 4core 3.00-3.90GHz P10 | S65: 12core 2.90-4.00GHz P10 | T65: 12core 3.40-4.00GHz P10 | U65: 16core 3.10-4.00GHz P10 | V65: 40core 3.65-3.9GHz P10 | W65: 8core 4.15GHz P8 | X65: 4core 3.02GHz P8 | Y65: 40core 4.19GHz P8 | Z65: 48core 4.00GHz P8 | AB65: 40core 4.19GHz P8
A66: 8core 3.6GHz P7+ | B66: 8core 4.2GHz P7+ | E66: 8core 4.2GHz P7+ | F66: 8core 3.6GHz P7+ | G66: 8core 3.72GHz P8 | H66: 12core 3.52GHz P8 | I66: 8core 2.8-3.8GHz P9 | J66: 11core 3.45-3.9GHz P9 | K66: 8core 2.8-3.8GHz P9 | M66: 11core 3.45-3.9GHz P9 | O66: 40core 3.7-3.9GHz P9 | P66: 4core 3.00-3.90GHz P10 | Q66: 8core 3.00-3.90GHz P10 | R66: 8core 3.00-3.90GHz P10 | S66: 16core 2.75-4.00GHz P10 | U66: 24core 2.75-3.90GHz P10 | V66: 48core 3.6-4.15GHz P10 | W66: 10core 3.42GHz P8 | AB66: 48core 4.00GHz P8
F67: 8core 4.2GHz P7+ | J67: 12core 3.4-3.9GHz P9 | M67: 12core 3.4-3.9GHz P9 | O67: 44core 3.58-3.9GHz P9 | P67: 8core 3.00-3.90GHz P10 | S67: 20core 2.45-3.90GHz P10 | V67: 60core 3.55-4.0GHz P10
O68: 48core 3.55-3.9GHz P9
P70: 30日(無償)＋ | Q70: 30日(無償)＋ | R70: 30日(無償)＋ | S70: 30日(無償)＋ | T70: 30日(無償)＋ | U70: 90日(無償)＋ | V70: 90日(無償)＋
P73: ソケット | Q73: ソケット | R73: ソケット | S73: ソケット | T73: ソケット | U73: ソケット | V73: ソケット
P74: 要選択 | Q74: 要選択 | R74: 要選択 | S74: 要選択 | T74: 要選択 | U74: 要選択 | V74: 要選択
P75: 1 | Q75: 1 | R75: 2 | S75: 1 | T75: 1 | U75: 1 | V75: 1
S76: 2 | T76: 2 | U76: 2 | V76: 2
V77: 3
V78: 4
A80: 最大スロット数 | B80: 最大スロット数 | C80: 最大スロット数 | D80: 最大スロット数 | E80: 最大スロット数 | F80: 最大スロット数 | G80: 最大スロット数 | H80: 最大スロット数 | I80: 最大スロット数 | J80: 最大スロット数 | K80: 最大スロット数 | M80: 最大スロット数 | N80: 最大スロット数 | O80: 最大スロット数 | P80: 最大スロット数 | Q80: 最大スロット数 | R80: 最大スロット数 | S80: 最大スロット数 | T80: 最大スロット数 | U80: 最大スロット数 | V80: 最大スロット数 | W80: 最大スロット数 | X80: 最大スロット数 | Y80: 最大スロット数 | Z80: 最大スロット数 | AA80: 最大スロット数 | AB80: 最大スロット数
I81: 13 | J81: 26 | K81: 13 | M81: 26 | N81: 19 | O81: 192 | P81: 4 | Q81: 10 | R81: 20 | S81: 20 | T81: 30 | U81: 30 | V81: 192
A83: ユーザー | B83: プロセッサー | C83: モデル | D83: 対話型
A84: 824:8286-42A | B84: 824:8286-42A | C84: 要選択 | D84: 814:8286-41A
A85: 924:9009-42A | B85: 924:9009-42A | C85: 既存同等 | D85: 822:8284-22A
A86: 870:9119-MME | B86: 870:9119-MME | C86: 1012:9028-21B | D86: 914:9009-41A
A87: 880:9119-MHE | B87: 880:9119-MHE | C87: 1014:9105-41B | D87: 922:9009-22G
A88: 870C:9080-MME | B88: 870C:9080-MME | C88: 1022:9105-22B(1022s) | D88: 914:9009-41G
A89: 880C:9080-MHE | B89: 880C:9080-MHE | C89: 1022:9105-22A | D89: 1012:9028-21B
A90: 980:9080-M9S | B90: 980:9080-M9S | C90: 1024:9105-42A(P20) | D90: 1014:9105-41B
A91: 924:9009-42G | B91: 924:9009-42G | C91: 1024:9105-42A(P30) | D91: 1022:9105-22B(1022s)
A92: 1024:9105-42A(P20) | B92: 1022:9105-22A | C92: 1080:9080-HEX | D92: 1022:9105-22A
A93: 1024:9105-42A(P30) | B93: 1024:9105-42A(P20)
A94: 1080:9080-HEX | B94: 1024:9105-42A(P30)
B95: 1080:9080-HEX

Sheet CPW表 (hidden)
C2: Power10 | M2: Power9 | W2: Power8 | AG2: Power7 | AQ2: Power6 | AZ2: Power5（rPerfのみ）
B3: モデル | C3: プロセッサカード | D3: core数 | E3: 総CPW値 | F3: 総rPerf値 SMT8 | G3: CPW/core | H3: rPerf/Core | L3: モデル | M3: プロセッサカード | N3: core数 | O3: 総CPW値 | P3: 総rPerf値 SMT4 | Q3: CPW/core | R3: rPerf/Core | V3: モデル | W3: プロセッサカード | X3: core数 | Y3: 総CPW値 | Z3: 総rPerf値 SMT4 | AA3: CPW/core | AB3: rPerf/Core | AF3: モデル | AG3: プロセッサカード | AH3: core数 | AI3: 総CPW値 | AJ3: 総rPerf値 | AK3: CPW/core | AL3: rPerf/Core | AM3: Chips | AQ3: モデル | AR3: Core数 | AS3: Clock | AT3: 総CPW値 | AU3: 総rPerf値 | AV3: CPW/Core | AW3: rPerf/Core | AX3: 備考 | AZ3: Model | BA3: Processor / #Cores | BB3: MHz | BC3: rPerf | BE3: Model | BF3: Processor / #Cores | BG3: MHz | BH3: rPerf | BU3: Model | BV3: CPW | BW3: Model | BX3: CPW | BY3: Model | BZ3: CPU | CA3: CPW | CB3: Model | CC3: CPU | CD3: V3R6 | CE3: V3R7 | CF3: V4 | CG3: Model | CH3: CPU | CI3: CPW | CJ3: 5250 | CL3: Model | CM3: CPU | CN3: CPW | CO3: 5250 | CP3: Model | CQ3: CPU FC | CR3: CPW | CS3: 対話FC | CT3: 5250 | CU3: ドミノ専用サーバー
B4: 1012 | C4: 1core 3.00-3.90GHz P10 | D4: 1core | E4: 29000 | F4: - | G4: =E4/LEFT($D4,SEARCH("core",$D4)-1) -> 29000 | L4: 914 | M4: 4core 2.3-3.8GHz P9 | N4: 4core | O4: 52500 | P4: 60.4 | Q4: =O4/LEFT($N4,SEARCH("core",$N4)-1) -> 13125 | R4: 15.1 | V4: 812 | W4: 1core 3.02GHz P8 | X4: 1core | Y4: 9880 | AA4: =IFERROR(Y4/LEFT($X4,SEARCH("core",$X4)-1),"") -> 9880 | AB4: =Z4/LEFT($X4,SEARCH("core",$X4)-1) -> 0 | AF4: 710 | AG4: 4core 3.0GHz P7 | AH4: 4core | AI4: 23800 | AJ4: 45.13 | AK4: =AI4/LEFT($AH4,SEARCH("core",$AH4)-1) -> 5950 | AL4: 11.2825 | AM4: 1 | AQ4: 520 | AR4: 1 | AS4: 4.2 | AT4: 4300 | AU4: 8.39 | AV4: =AT4/AR4 -> 4300 | AW4: =AU4/AR4 -> 8.39 | AZ4: JS20 | BA4: PPC970/1 | BB4: 1600 | BC4: 1.53 | BE4: p5-570 | BF4: P5/2 | BG4: 1500 | BH4: 9.13 | BU4: B10 | BV4: 2.9 | BW4: E02 | BX4: 4.5 | BY4: 200 | BZ4: 2030 | CA4: 7.3 | CB4: 400 | CC4: 2130 | CD4: 12.3 | CE4: 13.8 | CF4: 13.8 | CG4: 20S | CH4: 2010 | CI4: 17.1 | CJ4: 5.5 | CL4: 170 | CM4: 2159 | CN4: 73 | CO4: 16 | CP4: 720 | CQ4: 2061 | CR4: 240 | CS4: 1500 | CT4: 35 | CU4: Model | CV4: CPU FC | CW4: CPW
B5: 1012 | C5: 4core 3.00-3.90GHz P10 | D5: 4core | E5: 111300 | F5: 130.4 | G5: 27825 | H5: 32.6 | L5: 914 | M5: 6core 2.3-3.8GHz P9 | N5: 6core | O5: 78500 | P5: 88.5 | Q5: 13083.33333 | R5: 14.75 | V5: 812 | W5: 4core 3.02GHz P8 | X5: 4core | Z5: 62.5 | AA5: =Y5/LEFT($X5,SEARCH("core",$X5)-1) -> 0 | AB5: =Z5/LEFT($X5,SEARCH("core",$X5)-1) -> 15.625 | AF5: 710 | AG5: 6core 3.7GHz P7 | AH5: 6core | AI5: 40900 | AJ5: 76.69 | AK5: 6816.666667 | AL5: 12.78166667 | AM5: 1 | AR5: 2 | AS5: 4.2 | AT5: 8300 | AU5: 15.95 | AV5: 4150 | AW5: 7.975 | BA5: PPC970/2 | BB5: 1600 | BC5: 2.65 | BF5: P5/4 | BG5: 1500 | BH5: 18.2 | BU5: B20 | BV5: 5.1 | BW5: E04 | BX5: 5.5 | BZ5: 2031 | CA5: 11.6 | CC5: 2131 | CD5: 18.3 | CE5: 20.6 | CF5: 20.6 | CG5: 30S | CH5: 2411 | CI5: 32.3 | CJ5: 9.6 | CM5: 2160 | CN5: 114 | CO5: 23 | CQ5: 2062 | CR5: 420 | CS5: 1501 | CT5: 70 | CU5: 270 | CV5: 2422 | CW5: 50
B6: 1012 | C6: 8core 3.00-3.90GHz P10 | D6: 8core | E6: 203100 | F6: 234.2 | G6: 25387.5 | H6: 29.275 | L6: 914 | M6: 8core 2.8-3.8GHz P9 | N6: 8core | O6: 122500 | P6: 136.5 | Q6: 15312.5 | R6: 17.0625 | V6: 814 | W6: 4core 3.02GHz P8 | X6: 4core | Y6: 39500 | Z6: 62.5 | AA6: =Y6/LEFT($X6,SEARCH("core",$X6)-1) -> 9875 | AB6: =Z6/LEFT($X6,SEARCH("core",$X6)-1) -> 15.625 | AF6: 710 | AG6: 8core 3.55GHz P7 | AH6: 8core | AI6: 51800 | AJ6: 91.96 | AK6: 6475 | AL6: 11.495 | AM6: 1 | AN6: 770 | AO6: 12core 3.72GHz P7 | AP6: 24core | AR6: 2 | AS6: 4.7 | AT6: 9500 | AU6: 20.13 | AV6: 4750 | AW6: 10.065 | BA6: PPC970/1 | BB6: 2200 | BC6: 1.95 | BF6: P5/8 | BG6: 1500 | BH6: 34.46 | BU6: B30 | BV6: 3.8 | BW6: E06 | BX6: 7.3 | BZ6: 2032 | CA6: 16.8 | CC6: 2132 | CD6: 24.5 | CE6: 27 | CF6: 27 | CH6: 2412 | CI6: 68.5 | CJ6: 11.6 | CM6: 2164 | CN6: 210 | CO6: 29 | CQ6: 2063 | CR6: 810 | CS6: 1502 | CT6: 120 | CV6: 2423 | CW6: 100
B7: 1014 | C7: 4core 3.00-3.90GHz P10 | D7: 4core | E7: 106300 | F7: 129.4 | G7: 26575 | H7: 32.35 | I7: =G7 -> 26575 | L7: 922 | M7: 8core 3.4-3.9GHz P9 | N7: 8core | O7: 68000 | P7: 160.5 | Q7: 17000 | R7: 20.0625 | S7: 68000 | V7: 814 | W7: 6core 3.02GHz P8 | X7: 6core | Y7: 59500 | Z7: 91.1 | AA7: =Y7/LEFT($X7,SEARCH("core",$X7)-1) -> 9916.666667 | AB7: =Z7/LEFT($X7,SEARCH("core",$X7)-1) -> 15.18333333 | AF7: 710 | AG7: 4core 3.6GHz P7+ | AH7: 4core | AI7: 28400 | AJ7: 53.9 | AK7: 7100 | AL7: 13.475 | AM7: 1 | AR7: 4 | AS7: 4.2 | AT7: 15600 | AU7: 31.48 | AV7: 3900 | AW7: 7.87 | BA7: PPC970/2 | BB7: 2200 | BC7: 3.4 | BF7: P5/2 | BG7: 1650 | BH7: 9.86 | BU7: B35 | BV7: 4.6 | BW7: E10 | BX7: 7.6 | BY7: 300 | BZ7: 2040 | CA7: 11.6 | CC7: 2133 | CD7: 30.6 | CE7: 33.3 | CF7: 35 | CM7: 2176 | CN7: 319 | CO7: 40 | CQ7: 2064 | CR7: 1600 | CS7: 1503 | CT7: 240 | CV7: 2424 | CW7: 200
B8: 1014 | C8: 8core 3.00-3.90GHz P10 | D8: 8core | E8: 205300 | F8: 254.2 | G8: 25662.5 | H8: 31.775 | I8: =I7 -> 26575 | L8: 922 | M8: 10core 2.9-3.8GHz P9 | N8: 10Core | O8: 60000 | P8: 173.5 | Q8: 15000 | R8: 17.35 | S8: 60000 | V8: 814 | W8: 8core 3.72GHz P8 | X8: 8core | Y8: 85500 | Z8: 134.5 | AA8: =Y8/LEFT($X8,SEARCH("core",$X8)-1) -> 10687.5 | AB8: =Z8/LEFT($X8,SEARCH("core",$X8)-1) -> 16.8125 | AF8: 710 | AG8: 6core 4.2GHz P7+ | AH8: 6core | AI8: 49400 | AJ8: 90.6 | AK8: 8233.333333 | AL8: 15.1 | AM8: 1 | AR8: 4 | AS8: 4.7 | AT8: 18300 | AU8: 39.73 | AV8: 4575 | AW8: 9.9325 | AZ8: JS21 | BA8: PPC970+/2 | BB8: 2700 | BC8: 5.31 | BF8: P5/4 | BG8: 1650 | BH8: 19.66 | BU8: B40 | BV8: 5.2 | BW8: E20 | BX8: 9.7 | BZ8: 2041 | CA8: 16.8 | CB8: 500 | CC8: 2140 | CD8: 18.7 | CE8: 21.4 | CF8: 21.4 | CM8: 2183 | CN8: 319 | CO8: 67 | CS8: 1504 | CT8: 560 | CV8: 2452 | CW8: 100
B9: 1022 | C9: 4core 3.00-3.90GHz P10 | D9: 8core | E9: 198200 | F9: 129.4 | G9: =E9/LEFT($D9,SEARCH("core",$D9)-1) -> 24775 | H9: 16.175 | I9: =I8 -> 26575 | L9: 922 | M9: 8core 3.4-3.9GHz P9 | N9: 16core | O9: 68000 | P9: 160.5 | Q9: 17000 | R9: 10.03125 | S9: 68000 | V9: 822 | W9: 6core 3.89GHz P8 | X9: 6core | Y9: =AC9/2*(--SUBSTITUTE(X9,"core","")) -> 76500 | Z9: 112.9 | AA9: =IFERROR(Y9/LEFT($X9,SEARCH("core",$X9)-1),"") -> 12750 | AB9: =Z9/LEFT($X9,SEARCH("core",$X9)-1) -> 18.81666667 | AC9: 25500 | AD9: *** | AF9: 710 | AG9: 8core 4.2GHz P7+ | AH9: 8core | AI9: 64500 | AJ9: 115.5 | AK9: 8062.5 | AL9: 14.4375 | AM9: 1 | AQ9: 550 | AR9: 2 | AS9: 3.5 | AT9: 7750 | AU9: 15.85 | AV9: 3875 | AW9: 7.925 | BA9: PPC970+/4 | BB9: 2500 | BC9: 8.72 | BF9: P5/8 | BG9: 1650 | BH9: 37.22 | BU9: B45 | BV9: 6.5 | BW9: E25 | BX9: 11.8 | BZ9: 2042 | CA9: 21.1 | CC9: 2141 | CD9: 26.9 | CE9: 30.7 | CF9: 30.7 | CM9: 2289 | CN9: 50 | CO9: 15 | CS9: 1505 | CT9: 1050 | CV9: 2454 | CW9: 240
B10: 1022 | C10: 8core 3.00-3.90GHz P10 | D10: 8core | F10: 254.2 | G10: =I7 -> 26575 | H10: 31.775 | I10: =I9 -> 26575 | L10: 922 | M10: 10core 2.9-3.8GHz P9 | N10: 20Core | O10: 60000 | P10: 173.5 | Q10: 15000 | R10: 8.675 | S10: 60000 | V10: 822 | W10: 6core 3.89GHz P8 | X10: 12core | Y10: 153000 | Z10: 220.2 | AA10: =Y10/LEFT($X10,SEARCH("core",$X10)-1) -> 12750 | AB10: 18.35 | AC10: 25500 | AD10: *** | AF10: 720 | AG10: 4core 3.0GHz P7 | AH10: 4core | AI10: 23800 | AJ10: 45.13 | AK10: 5950 | AL10: 11.2825 | AM10: 1 | AR10: 2 | AS10: 4.2 | AT10: 9200 | AU10: 18.38 | AV10: 4600 | AW10: 9.19 | BA10: PPC970+/4 | BB10: 2300 | BC10: 8.15 | BF10: P5/12 | BG10: 1650 | BH10: 53.43 | BU10: B50 | BV10: 9.3 | BW10: E35 | BX10: 9.7 | BY10: 310 | BZ10: 2043 | CA10: 33.8 | CC10: 2142 | CD10: 38.3 | CE10: 43.9 | CF10: 43.9 | CM10: 2290 | CN10: 73 | CO10: 20 | CP10: 730 | CQ10: 2065 | CR10: 560 | CS10: 1506 | CT10: 70 | CU10: 820 | CV10: 2425 | CW10: 100
B11: 1022 | C11: 8core 3.00-3.90GHz P10 | D11: 16core | F11: 477.8 | G11: =I8 -> 26575 | H11: 29.8625 | I11: 26175 | L11: 924 | M11: 8core 3.8-4.0GHz P9 | N11: 8core | O11: 145500 | P11: 174.1 | Q11: =O11/LEFT($N11,SEARCH("core",$N11)-1) -> 18187.5 | R11: 21.7625 | V11: 822 | W11: 8core 4.15GHz P8 | X11: 8core | Y11: 108000 | Z11: 155.1 | AA11: =IFERROR(Y11/LEFT($X11,SEARCH("core",$X11)-1),"") -> 13500 | AB11: 19.3875 | AC11: 27000 | AD11: *** | AF11: 720 | AG11: 6core 3.0GHz P7 | AH11: 6core | AI11: 34900 | AJ11: 65.52 | AK11: 5816.666667 | AL11: 10.92 | AM11: 1 | AR11: 2 | AS11: 5 | AT11: 10600 | AU11: 21.18 | AV11: 5300 | AW11: 10.59 | AZ11: IS-285 | BA11: P5+/2 | BB11: 1900 | BC11: -- | BF11: P5/16 | BG11: 1650 | BH11: 68.4 | BU11: B60 | BV11: 15.1 | BW11: E45 | BX11: 13.8 | BZ11: 2044 | CA11: 56.5 | CB11: 510 | CC11: 2143 | CD11: 66.7 | CE11: 77.7 | CF11: 81.6 | CM11: 2291 | CN11: 115 | CO11: 25 | CQ11: 2066 | CR11: 1050 | CS11: 1507 | CT11: 120 | CV11: 2426 | CW11: 200
B12: 1022 | C12: 12core 2.90-4.00GHz P10 | D12: 12core | G12: 26575 | I12: 26575 | L12: 924 | M12: 8core 3.8-4.0GHz P9 | N12: 16Core | O12: 268500 | P12: 339.5 | Q12: 16781.25 | R12: 21.21875 | V12: 822 | W12: 8core 4.15GHz P8 | X12: 16core | Y12: 216000 | Z12: 302.4 | AA12: 13500 | AB12: 18.9 | AC12: 27000 | AD12: *** | AF12: 720 | AG12: 8core 3.0GHz P7 | AH12: 8core | AI12: 46300 | AJ12: 81.24 | AK12: 5787.5 | AL12: 10.155 | AM12: 1 | AR12: 4 | AS12: 3.5 | AT12: 15000 | AU12: 31.27 | AV12: 3750 | AW12: 7.8175 | BA12: P5+/2 | BB12: 2100 | BC12: -- | BF12: P5/2 | BG12: 1900 | BH12: 11.16 | BU12: B70 | BV12: 20 | BW12: E50 | BX12: 18.1 | BY12: 320 | BZ12: 2050 | CA12: 67.5 | CC12: 2144 | CD12: 85 | CE12: 104.2 | CF12: 111.5 | CM12: 2292 | CN12: 220 | CO12: 30 | CQ12: 2067 | CR12: 2000 | CS12: 1508 | CT12: 240 | CV12: 2427 | CW12: 300
B13: 1022 | C13: 16core 2.75-4.00GHz P10 | D13: 16core | G13: 26575 | I13: 26575 | L13: 924 | M13: 10core 3.5-3.9GHz P9 | N13: 10Core | O13: 174500 | P13: 203.3 | Q13: 17450 | R13: 20.33 | V13: 822 | W13: 10core 3.42GHz P8 | X13: 10core | Y13: 115000 | Z13: 166.2 | AA13: =IFERROR(Y13/LEFT($X13,SEARCH("core",$X13)-1),"") -> 11500 | AB13: 16.62 | AC13: 23000 | AD13: *** | AF13: 720 | AG13: 4core 3.6GHz P7+ | AH13: 4core | AI13: 28400 | AJ13: 53.9 | AK13: 7100 | AL13: 13.475 | AM13: 1 | AN13: =INDEX(AK4:AK148,MATCH($AN6&$AO6&$AP6,INDEX($AF$4:$AF$140&$AG$4:$AG$148&$AH$4:$AH$148,),0)) -> 5662.5 | AO13: =INDEX(AL4:AL148,MATCH($AN6&$AO6&$AP6,INDEX($AF$4:$AF$140&$AG$4:$AG$148&$AH$4:$AH$148,),0)) -> 11.40416667 | AR13: 4 | AS13: 4.2 | AT13: 18000 | AU13: 36.28 | AV13: 4500 | AW13: 9.07 | AZ13: p5-505 | BA13: P5/2 | BB13: 1500 | BC13: 9.13 | BF13: P5/4 | BG13: 1900 | BH13: 22.26 | BU13: C04 | BV13: 3.1 | BW13: E60 | BX13: 28.1 | BZ13: 2051 | CA13: 120.3 | CB13: 530 | CC13: 2150 | CD13: 107.1 | CE13: 131.1 | CF13: 148 | CM13: 2385 | CN13: 460 | CO13: 50 | CQ13: 2068 | CR13: 2890 | CS13: 1509 | CT13: 560 | CV13: 2456 | CW13: 120
B14: 1022 | C14: 20core 2.45-3.90GHz P10 | D14: 20core | G14: 26175 | I14: 26175 | L14: 924 | M14: 10core 3.5-3.9GHz P9 | N14: 20Core | O14: 318000 | P14: 396.4 | Q14: 15900 | R14: 19.82 | V14: 822 | W14: 10core 3.42GHz P8 | X14: 20core | Y14: 230000 | Z14: 324 | AA14: 11500 | AB14: 16.2 | AC14: 23000 | AD14: *** | AF14: 720 | AG14: 6core 3.6GHz P7+ | AH14: 6core | AI14: 42400 | AJ14: 79.5 | AK14: 7066.666667 | AL14: 13.25 | AM14: 1 | AR14: 4 | AS14: 5 | AT14: 20550 | AU14: 41.81 | AV14: 5137.5 | AW14: 10.4525 | BA14: P5/1 | BB14: 1650 | BC14: 3.51 | BF14: P5/8 | BG14: 1900 | BH14: 42.14 | BU14: C06 | BV14: 3.6 | BW14: E70 | BX14: 39.2 | BZ14: 2052 | CA14: 177.4 | CC14: 2151 | CD14: 132.5 | CE14: 162.7 | CF14: 188.2 | CM14: 2386 | CN14: 460 | CO14: 70 | CS14: 1510 | CT14: 1050 | CV14: 2457 | CW14: 240
B15: 1022 | C15: 12core 2.90-4.00GHz P10 | D15: 24core | G15: 26575 | L15: 924 | M15: 12core 3.4-3.9GHz P9 | N15: 24Core | O15: 370700 | P15: 462.7 | Q15: 15445.83333 | R15: 19.27916667 | V15: 824 | W15: 6core 3.89GHz P8 | X15: 6Core | Y15: 72000 | Z15: 112.9 | AA15: 12000 | AB15: 18.81666667 | AF15: 720 | AG15: 8core 3.6GHz P7+ | AH15: 8core | AI15: 56300 | AJ15: 102.4 | AK15: 7037.5 | AL15: 12.8 | AM15: 1 | AR15: 6 | AS15: 3.5 | AT15: 20300 | AU15: 45.04 | AV15: 3383.333333 | AW15: 7.506666667 | BA15: P5/2 | BB15: 1650 | BC15: 9.86 | BF15: P5/12 | BG15: 1900 | BH15: 60.5 | BU15: C10 | BV15: 3.9 | BW15: E80 | BX15: 69.4 | BY15: 600 | BZ15: 2129 | CA15: 22.7 | CC15: 2152 | CD15: 198.7 | CE15: 278.8 | CF15: 319 | CM15: 2388 | CN15: 1090 | CO15: 70 | CS15: 1511 | CT15: 2000 | CV15: 2458 | CW15: 380
B16: 1022 | C16: 16core 2.75-4.00GHz P10 | D16: 32core | G16: 26575 | L16: 980 | M16: 24core 3.58-3.9GHz P9 | N16: 24Core | O16: 381000 | P16: 533.7 | Q16: 15875 | R16: 22.2375 | V16: 824 | W16: 6core 3.89GHz P8 | X16: 12Core | Y16: 130000 | Z16: 220.2 | AA16: 10833.33333 | AB16: 18.35 | AF16: 730 | AG16: 4core 3.0GHz P7 | AH16: 8core | AI16: 44600 | AJ16: 86.66 | AK16: 5575 | AL16: 10.8325 | AM16: 2 | AR16: 6 | AS16: 4.2 | AT16: 23850 | AU16: 52.24 | AV16: 3975 | AW16: 8.706666667 | BA16: P5+/1 | BB16: 1900 | BC16: 4.1 | BF16: P5/16 | BG16: 1900 | BH16: 77.45 | BU16: C20 | BV16: 5.3 | BW16: E90 | BX16: 96.7 | BZ16: 2134 | CA16: 32.5 | CC16: 2153 | CD16: 299 | CE16: 459.3 | CF16: 598 | CM16: 2407 | CN16: 30 | CO16: 10 | CP16: 740 | CQ16: 2069 | CR16: 3660 | CS16: 1514 | CT16: 120 | CU16: アプリケーション・サーバー
B17: 1022 | C17: 20core 2.45-3.90GHz P10 | D17: 40core | G17: 26175 | L17: 980 | M17: 24core 3.58-3.9GHz P9 | N17: 48Core | O17: 759000 | P17: 1067.3 | Q17: 15812.5 | R17: 22.23541667 | V17: 824 | W17: 8core 4.15GHz P8 | X17: 4 | Y17: 94500 | Z17: 155.1 | AF17: 730 | AG17: 4core 3.7GHz P7 | AH17: 8core | AI17: 51900 | AJ17: 101.62 | AK17: 6487.5 | AL17: 12.7025 | AM17: 2 | AR17: 6 | AS17: 5 | AT17: 28800 | AU17: 60.2 | AV17: 4800 | AW17: 10.03333333 | BA17: P5+/2 | BB17: 1900 | BC17: 11.49 | BF17: P5+/2 | BG17: 1900 | BH17: 12.27 | BU17: C25 | BV17: 6.1 | BW17: E95 | BX17: 116.6 | BZ17: 2135 | CA17: 45.4 | CC17: 2162 | CD17: 349.8 | CE17: 509.9 | CF17: 650 | CM17: 2408 | CN17: 60 | CO17: 15 | CQ17: 2070 | CR17: 4550 | CS17: 1510 | CT17: 1050 | CU17: Model | CV17: CPU FC | CW17: CPW
B18: 1024 | C18: 12core 3.40-4.00GHz P10 | D18: 12core | E18: 312500 | G18: =E18/LEFT($D18,SEARCH("core",$D18)-1) -> 26041.66667 | L18: 980 | M18: 24core 3.58-3.9GHz P9 | N18: 72Core | O18: 1140000 | P18: 1601 | Q18: 15833.33333 | R18: 22.23611111 | V18: 824 | W18: 8core 4.15GHz P8 | X18: 16Core | Y18: 173500 | Z18: 302.4 | AA18: 10843.75 | AB18: 18.9 | AF18: 730 | AG18: 6core 3.7GHz P7 | AH18: 12core | AI18: 77200 | AJ18: 147.24 | AK18: 6433.333333 | AL18: 12.27 | AM18: 2 | AR18: 8 | AS18: 3.5 | AT18: 27600 | AU18: 58.8 | AV18: 3450 | AW18: 7.35 | BA18: P5+/2 | BB18: 2100 | BC18: 12.46 | BF18: P5+/4 | BG18: 1900 | BH18: 24.48 | BU18: D04 | BV18: 4.4 | BW18: F02 | BX18: 5.5 | BZ18: 2136 | CA18: 73.1 | CD18: V3R6 | CF18: V3R7 | CH18: V4 | CM18: 2409 | CN18: 120 | CO18: 20 | CS18: 1511 | CT18: 2000 | CU18: SB2 | CV18: 2315 | CW18: 7350
B19: 1024 | C19: 16core 3.10-4.00GHz P10 | D19: 16core | E19: 383400 | G19: 23962.5 | L19: 980 | M19: 24core 3.58-3.9GHz P9 | N19: 96Core | O19: 1522000 | P19: 2134.6 | Q19: 15854.16667 | R19: 22.23541667 | V19: 824 | W19: 12core 3.52GHz P8 | X19: 24Core | Y19: 230500 | Z19: 394.2 | AA19: 9604.166667 | AB19: 16.425 | AF19: 730 | AG19: 8core 3.55GHz P7 | AH19: 16core | AI19: 97700 | AJ19: 176.57 | AK19: 6106.25 | AL19: 11.035625 | AM19: 2 | AR19: 8 | AS19: 4.2 | AT19: 32650 | AU19: 68.2 | AV19: 4081.25 | AW19: 8.525 | AZ19: p5-505Q | BA19: P5+/4 | BB19: 1650 | BC19: 20.25 | BF19: P5+/8 | BG19: 1900 | BH19: 46.36 | BU19: D06 | BV19: 5.5 | BW19: F04 | BX19: 7.3 | BY19: 620 | BZ19: 2175 | CA19: 50 | CB19: Model | CC19: CPU | CD19: CPW | CE19: 5250 | CF19: CPW | CG19: 5250 | CH19: CPW | CI19: 5250 | CL19: 250 | CM19: 2295 | CN19: 50 | CO19: 15 | CS19: 1512 | CT19: 3660 | CU19: SB3 | CV19: 2316 | CW19: 10000
B20: 1024 | C20: 24core 2.75-3.90GHz P10 | D20: 24core | E20: 500500 | G20: 20854.16667 | L20: 980 | M20: 32core 3.9-4.0GHz P9 | N20: 32Core | O20: 508900 | P20: 722.2 | Q20: 15903.125 | R20: 22.56875 | V20: 870 | W20: 32core 4.02GHz P8 | X20: 32core | Y20: 359000 | Z20: 630.4 | AA20: 11218.75 | AB20: 19.7 | AF20: 730 | AG20: 4core 4.3GHz P7+ | AH20: 8core | AI20: 59700 | AJ20: 120.4 | AK20: 7462.5 | AL20: 15.05 | AM20: 2 | AR20: 8 | AS20: 5 | AT20: 37950 | AU20: 78.6 | AV20: 4743.75 | AW20: 9.825 | BA20: P5/1 | BB20: 1500 | BC20: 3.25 | BF20: P5+/12 | BG20: 1900 | BH20: 66.55 | BU20: D10 | BV20: 5.3 | BW20: F06 | BX20: 9.6 | BZ20: 2179 | CA20: 85.6 | CB20: 40S | CC20: 2109 | CD20: 24.5 | CE20: 8.4 | CF20: 27 | CG20: 9.4 | CH20: 27 | CI20: 9.4 | CM20: 2296 | CN20: 75 | CO20: 20 | CS20: 1513 | CT20: 4550 | CV20: 2318 | CW20: 16500
B21: 1024 | C21: 12core 3.40-4.00GHz P10 | D21: 24core | E21: 585100 | G21: 24379.16667 | L21: 980 | M21: 32core 3.9-4.0GHz P9 | N21: 64Core | O21: 1012000 | P21: 1444.4 | Q21: 15812.5 | R21: 22.56875 | V21: 870 | W21: 32core 4.02GHz P8 | X21: 64core | Y21: 711000 | Z21: 1260.8 | AA21: 11109.375 | AB21: 19.7 | AF21: 730 | AG21: 6core 4.2GHz P7+ | AH21: 12core | AI21: 89200 | AJ21: 176.6 | AK21: 7433.333333 | AL21: 14.71666667 | AM21: 2 | AQ21: 560 | AR21: 4 | AS21: 3.6 | AT21: 14100 | AU21: 31.32 | AV21: 3525 | AW21: 7.83 | BA21: P5/2 | BB21: 1500 | BC21: 9.13 | BF21: P5+/16 | BG21: 1900 | BH21: 85.2 | BU21: D20 | BV21: 6.8 | BW21: F10 | BX21: 9.6 | BZ21: 2180 | CA21: 113.8 | CC21: 2110 | CD21: 30.6 | CE21: 12.3 | CF21: 33.3 | CG21: 13.8 | CH21: 35 | CI21: 14.5 | CL21: S10 | CM21: 2118 | CN21: 45.4 | CO21: 16.2 | CP21: 270 | CQ21: 2248 | CR21: 150 | CS21: 1516 | CT21: 0 | CU21: Model | CV21: CPU FC | CW21: CPW | CX21: 対話FC | CY21: 5250
B22: 1024 | C22: 16core 3.10-4.00GHz P10 | D22: 32core | E22: 725000 | G22: 22656.25 | L22: 980 | M22: 32core 3.9-4.0GHz P9 | N22: 96Core | O22: 1521000 | P22: 2166.6 | Q22: 15843.75 | R22: 22.56875 | V22: 870 | W22: 40core 4.19GHz P8 | X22: 40Core | Y22: 460000 | Z22: 800 | AA22: 11500 | AB22: 20 | AF22: 730 | AG22: 8core 3.6GHz P7+ | AH22: 16core | AI22: 104700 | AJ22: 197.7 | AK22: 6543.75 | AL22: 12.35625 | AM22: 2 | AR22: 8 | AS22: 3.6 | AT22: 27600 | AU22: 57.32 | AV22: 3450 | AW22: 7.165 | BA22: P5/1 | BB22: 1650 | BC22: 5.24 | BF22: P5+2 | BG22: 2200 | BH22: 13.83 | BU22: D25 | BV22: 9.7 | BW22: F20 | BX22: 11.6 | BZ22: 2181 | CA22: 210 | CC22: 2111 | CD22: 52.9 | CE22: 18.3 | CF22: 59.8 | CG22: 20.6 | CH22: 63 | CI22: 21.6 | CM22: 2119 | CN22: 73.1 | CO22: 24.4 | CQ22: 2250 | CR22: 370 | CS22: 1517 | CT22: 25 | CU22: 840 | CV22: 2352 | CW22: 9000- | CX22: 1540 | CY22: 120
B23: 1024 | C23: 24core 2.75-3.90GHz P10 | D23: 48core | E23: 947500 | G23: 19739.58333 | L23: 980 | M23: 32core 3.9-4.0GHz P9 | N23: 128Core | O23: 2030000 | P23: 2888.8 | Q23: 15859.375 | R23: 22.56875 | V23: 870 | W23: 40core 4.19GHz P8 | X23: 80Core | Y23: 911000 | Z23: 1599.9 | AA23: 11387.5 | AB23: 19.99875 | AF23: 730 | AG23: 8core 4.2GHz P7+ | AH23: 16core | AI23: 117600 | AJ23: 223.1 | AK23: 7350 | AL23: 13.94375 | AM23: 2 | AR23: 16 | AS23: 3.6 | AT23: 48500 | AU23: 100.3 | AV23: 3031.25 | AW23: 6.26875 | BA23: P5/2 | BB23: 1650 | BC23: 9.86 | BF23: P5+/4 | BG23: 2200 | BH23: 27.58 | BU23: D35 | BV23: 7.4 | BW23: F25 | BX23: 13.7 | BZ23: 2182 | CA23: 464.3 | CC23: 2112 | CD23: 77.3 | CE23: 26.9 | CF23: 87.3 | CG23: 30.7 | CH23: 91 | CI23: 32.2 | CL23: S20 | CM23: 2161 | CN23: 113.8 | CO23: 31 | CQ23: 2252 | CR23: 950 | CS23: 1518 | CT23: 30 | CW23: 12000 | CX23: 1541 | CY23: 240
B24: 1080 | C24: 40core 3.65-3.9GHz P10 | D24: 40core | E24: 922000 | F24: 1056.3 | G24: =E24/LEFT($D24,SEARCH("core",$D24)-1) -> 23050 | H24: =F24/LEFT($D24,SEARCH("core",$D24)-1) -> 26.4075 | L24: 980 | M24: 40core 3.7-3.9GHz P9 | N24: 40Core | O24: 611300 | P24: 871.5 | Q24: 15282.5 | R24: 21.7875 | V24: 880 | W24: 32core 4.35GHz P8 | X24: 32core | Y24: 381000 | Z24: 669.4 | AA24: 11906.25 | AB24: 20.91875 | AF24: 740 | AG24: 4core 3.3GHz P7 | AH24: 4core | AI24: 25500 | AJ24: 48.33 | AK24: 6375 | AL24: 12.0825 | AM24: 1 | AQ24: 570 | AR24: 2 | AS24: 3.5 | AT24: 8150 | AU24: 15.85 | AV24: 4075 | AW24: 7.925 | BA24: P5+/1 | BB24: 1900 | BC24: 6.11 | BF24: P5+/8 | BG24: 2200 | BH24: 52.21 | BU24: D45 | BV24: 10.8 | BW24: F35 | BX24: 13.7 | BY24: 640 | BZ24: 2237 | CA24: 319 | CB24: 50S | CC24: 2120 | CD24: 66.7 | CE24: 18.7 | CF24: 77.7 | CG24: 21.4 | CH24: 81.6 | CI24: 22.5 | CM24: 2163 | CN24: 210 | CO24: 35.8 | CQ24: 2253 | CR24: 2000 | CS24: 1519 | CT24: 50 | CX24: 1542 | CY24: 560
B25: 1080 | C25: 40core 3.65-3.9GHz P10 | D25: 80core | E25: 1834000 | F25: 2112.6 | G25: =E25/LEFT($D25,SEARCH("core",$D25)-1) -> 22925 | H25: =F25/LEFT($D25,SEARCH("core",$D25)-1) -> 26.4075 | L25: 980 | M25: 40core 3.7-3.9GHz P9 | N25: 80Core | O25: 1216000 | P25: 1743 | Q25: 15200 | R25: 21.7875 | V25: 880 | W25: 32core 4.35GHz P8 | X25: 64core | Y25: 755000 | Z25: 1338.8 | AA25: 11796.875 | AB25: 20.91875 | AF25: 740 | AG25: 4core 3.3GHz P7 | AH25: 8core | AI25: 47800 | AJ25: 92.79 | AK25: 5975 | AL25: 11.59875 | AM25: 2 | AR25: 2 | AS25: 4.2 | AT25: 9650 | AU25: 18.38 | AV25: 4825 | AW25: 9.19 | BA25: P5+/2 | BB25: 1900 | BC25: 11.49 | BF25: P5+/12 | BG25: 2200 | BH25: 74.95 | BU25: D50 | BV25: 13.3 | BW25: F45 | BX25: 17.1 | BZ25: 2238 | CA25: 583.3 | CC25: 2121 | CD25: 85 | CE25: 26.9 | CF25: 104.2 | CG25: 30.7 | CH25: 111.5 | CI25: 32.2 | CM25: 2165 | CN25: 464.3 | CO25: 49.7 | CQ25: 2431 | CR25: 465 | CS25: 1520 | CT25: 70 | CV25: 2353 | CW25: 12000- | CX25: 1543 | CY25: 1050
B26: 1080 | C26: 40core 3.65-3.9GHz P10 | D26: 120core | E26: 2756000 | F26: 3168.9 | G26: 22966.66667 | H26: 26.4075 | L26: 980 | M26: 40core 3.7-3.9GHz P9 | N26: 120Core | O26: 1827000 | P26: 2614.5 | Q26: 15225 | R26: 21.7875 | V26: 880 | W26: 32core 4.35GHz P8 | X26: 96core | Y26: 1144000 | Z26: 2008.2 | AA26: 11916.66667 | AB26: 20.91875 | AF26: 740 | AG26: 4core 3.7GHz P7 | AH26: 4core | AI26: 27900 | AJ26: 52.93 | AK26: 6975 | AL26: 13.2325 | AM26: 1 | AR26: 2 | AS26: 4.4 | AT26: 9850 | AU26: 19.08 | AV26: 4925 | AW26: 9.54 | BA26: P5+/1 | BB26: 2100 | BC26: 6.63 | BF26: P5+/16 | BG26: 2200 | BH26: 95.96 | BU26: D60 | BV26: 23.9 | BW26: F50 | BX26: 27.8 | BZ26: 2239 | CA26: 998.6 | CC26: 2122 | CD26: 106.8 | CE26: 26.9 | CF26: 130.7 | CG26: 30.7 | CH26: 138 | CI26: 32.2 | CM26: 2166 | CN26: 759 | CO26: 56.9 | CQ26: 2432 | CR26: 1070 | CW26: 16500 | CX26: 1544 | CY26: 2000
B27: 1080 | C27: 40core 3.65-3.9GHz P10 | D27: 160core | E27: 3678000 | F27: 4225.2 | G27: 22987.5 | H27: 26.4075 | L27: 980 | M27: 40core 3.7-3.9GHz P9 | N27: 160Core | O27: 2439000 | P27: 3486 | Q27: =O27/LEFT($N27,SEARCH("core",$N27)-1) -> 15243.75 | R27: 21.7875 | V27: 880 | W27: 32core 4.35GHz P8 | X27: 128core | Y27: 1523000 | Z27: 2677.6 | AA27: 11898.4375 | AB27: 20.91875 | AF27: 740 | AG27: 4core 3.7GHz P7 | AH27: 8core | AI27: 52200 | AJ27: 101.62 | AK27: 6525 | AL27: 12.7025 | AM27: 2 | AR27: 2 | AS27: 4.7 | AT27: 10800 | AU27: 20.13 | AV27: 5400 | AW27: 10.065 | BA27: P5+/2 | BB27: 2100 | BC27: 12.46 | BE27: p5-575 | BF27: P5/16 | BG27: 1500 | BH27: -- | BU27: D70 | BV27: 32.3 | BW27: F60 | BX27: 40 | BY27: 650 | BZ27: 2240 | CA27: 1794 | CB27: 53S | CC27: 2154 | CD27: 132.5 | CE27: 26.9 | CF27: 162.7 | CG27: 30.7 | CH27: 188.2 | CI27: 32.2 | CM27: 2170 | CN27: 464.3 | CO27: 49.7 | CQ27: 2434 | CR27: 2350 | CX27: 1545 | CY27: 4550
B28: 1080 | C28: 48core 3.6-4.15GHz P10 | D28: 48core | E28: 1129000 | F28: 1315.4 | G28: 23520.83333 | H28: 27.40416667 | L28: 980 | M28: 44core 3.58-3.9GHz P9 | N28: 44Core | O28: 639000 | P28: 937.7 | Q28: 14522.72727 | R28: 21.31136364 | V28: 880 | W28: 48core 4.00GHz P8 | X28: 48Core | Y28: 518000 | Z28: 912.6 | AA28: =Y28/LEFT($X28,SEARCH("core",$X28)-1) -> 10791.66667 | AB28: 19.0125 | AF28: 740 | AG28: 6core 3.7GHz P7 | AH28: 6core | AI28: 41600 | AJ28: 76.69 | AK28: 6933.333333 | AL28: 12.78166667 | AM28: 1 | AR28: 2 | AS28: 5 | AT28: 11000 | AU28: 21.16 | AV28: 5500 | AW28: 10.58 | AZ28: p5-510Q | BA28: P5+/4 | BB28: 1500 | BC28: 18.75 | BF28: P5/8 | BG28: 1900 | BH28: -- | BU28: D80 | BV28: 56.6 | BW28: F70 | BX28: 57 | BZ28: 2243 | CA28: 2340 | CC28: 2155 | CD28: 198.7 | CE28: 26.9 | CF28: 278.8 | CG28: 30.7 | CH28: 319 | CI28: 32.2 | CM28: 2177 | CN28: 759 | CO28: 110.7 | CP28: 820 | CQ28: 2395 | CR28: 370 | CS28: 1521 | CT28: 35 | CV28: 2354 | CW28: 16500- | CX28: 1546 | CY28: 10000
B29: 1080 | C29: 48core 3.6-4.15GHz P10 | D29: 96core | E29: 2246000 | F29: 2630.9 | G29: 23395.83333 | H29: 27.40520833 | L29: 980 | M29: 44core 3.58-3.9GHz P9 | N29: 88Core | O29: 1271000 | P29: 1875.3 | Q29: 14443.18182 | R29: 21.31022727 | V29: 880 | W29: 48core 4.00GHz P8 | X29: 96Core | Y29: 1034000 | Z29: 1825.1 | AA29: 10770.83333 | AB29: 19.01145833 | AF29: 740 | AG29: 6core 3.7GHz P7 | AH29: 12core | AI29: 77200 | AJ29: 147.24 | AK29: 6433.333333 | AL29: 12.27 | AM29: 2 | AR29: 4 | AS29: 3.5 | AT29: 16100 | AU29: 31.69 | AV29: 4025 | AW29: 7.9225 | BA29: P5+/4 | BB29: 1650 | BC29: 20.25 | BF29: P5+/16 | BG29: 1900 | BH29: -- | BW29: F80 | BX29: 97.1 | BZ29: 2188 | CA29: 3660 | CC29: 2156 | CD29: 299 | CE29: 26.9 | CF29: 459.3 | CG29: 30.7 | CH29: 598 | CI29: 32.2 | CM29: 2178 | CN29: 759 | CO29: 221.4 | CQ29: 2396 | CR29: 950 | CS29: 1522 | CT29: 70 | CW29: 20200 | CX29: 1547 | CY29: 16500
B30: 1080 | C30: 48core 3.6-4.15GHz P10 | D30: 144core | E30: 3375000 | F30: 3946.3 | G30: 23437.5 | H30: 27.40486111 | L30: 980 | M30: 44core 3.58-3.9GHz P9 | N30: 132Core | O30: 1910000 | P30: 2813 | Q30: 14469.69697 | R30: 21.31060606 | V30: 880 | W30: 48core 4.00GHz P8 | X30: 144Core | Y30: 1551000 | Z30: 2737.7 | AA30: 10770.83333 | AB30: 19.01180556 | AF30: 740 | AG30: 8core 3.55GHz P7 | AH30: 8core | AI30: 52600 | AJ30: 91.96 | AK30: 6575 | AL30: 11.495 | AM30: 1 | AR30: 4 | AS30: 4.2 | AT30: 19200 | AU30: 36.76 | AV30: 4800 | AW30: 9.19 | AZ30: p5-520 | BA30: P5/1 | BB30: 1500 | BC30: 3.25 | BF30: P5+/8 | BG30: 2200 | BH30: -- | BW30: F90 | BX30: 127.7 | BZ30: 2189 | CA30: 4550 | CC30: 2157 | CD30: 349.8 | CE30: 26.9 | CF30: 509.9 | CG30: 30.7 | CH30: 650 | CI30: 32.2 | CL30: S30 | CM30: 2257 | CN30: 319 | CO30: 51.5 | CQ30: 2397 | CR30: 2000 | CS30: 1523 | CT30: 120 | CX30: 1548 | CY30: 20200
B31: 1080 | C31: 48core 3.6-4.15GHz P10 | D31: 192core | E31: 4504000 | F31: 5261.8 | G31: 23458.33333 | H31: 27.40520833 | L31: 980 | M31: 44core 3.58-3.9GHz P9 | N31: 176Core | O31: 2549000 | P31: 3750.6 | Q31: 14482.95455 | R31: 21.31022727 | V31: 880 | W31: 48core 4.00GHz P8 | X31: 192Core | Y31: 2069000 | Z31: 3650.3 | AA31: 10776.04167 | AB31: 19.01197917 | AF31: 740 | AG31: 8core 3.55GHz P7 | AH31: 16core | AI31: 97700 | AJ31: 176.57 | AK31: 6106.25 | AL31: 11.035625 | AM31: 2 | AR31: 4 | AS31: 4.4 | AT31: 19400 | AU31: 38.16 | AV31: 4850 | AW31: 9.54 | BA31: P5/2 | BB31: 1500 | BC31: 9.13 | BE31: p5-590 | BF31: P5/8 | BG31: 1650 | BH31: 41.68 | BW31: F95 | BX31: 148.8 | CM31: 2258 | CN31: 583.3 | CO31: 64 | CQ31: 2398 | CR31: 3200 | CS31: 1524 | CT31: 240 | CV31: 2416 | CW31: 7800-
B32: 1080 | C32: 60core 3.55-4.0GHz P10 | D32: 60core | E32: 1320000 | F32: 1578.6 | G32: 22000 | H32: 26.31 | L32: 980 | M32: 48core 3.55-3.9GHz P9 | N32: 48Core | O32: 687500 | P32: 1008.1 | Q32: 14322.91667 | R32: 21.00208333 | U32: Cモデル | V32: 870 | W32: 32core 4.02GHz P8 | X32: 32core | Y32: 359000 | Z32: 630.4 | AA32: 11218.75 | AB32: 19.7 | AF32: 740 | AG32: 6core 4.2GHz P7+ | AH32: 6Core | AI32: 49000 | AJ32: 90.6 | AK32: 8166.666667 | AL32: 15.1 | AM32: 1 | AR32: 4 | AS32: 4.7 | AT32: 21200 | AU32: 40.26 | AV32: 5300 | AW32: 10.065 | BA32: P5/2 | BB32: 1650 | BC32: 9.86 | BF32: P5/16 | BG32: 1650 | BH32: 80.86 | BW32: F97 | BX32: 177.4 | CM32: 2259 | CN32: 998.6 | CO32: 64 | CQ32: 2435 | CR32: 600 | CS32: 1525 | CT32: 560 | CW32: 10000
B33: 1080 | C33: 60core 3.55-4.0GHz P10 | D33: 120core | E33: 2626000 | F33: 3157.2 | G33: 21883.33333 | H33: 26.31 | L33: 980 | M33: 48core 3.55-3.9GHz P9 | N33: 96Core | O33: 1368000 | P33: 2016.2 | Q33: 14250 | R33: 21.00208333 | V33: 870 | W33: 32core 4.02GHz P8 | X33: 64core | Y33: 711000 | Z33: 1260.8 | AA33: 11109.375 | AB33: 19.7 | AF33: 740 | AG33: 6core 4.2GHz P7+ | AH33: 12Core | AI33: 91700 | AJ33: 176.6 | AK33: 7641.666667 | AL33: 14.71666667 | AM33: 2 | AR33: 4 | AS33: 5 | AT33: 21600 | AU33: 42.32 | AV33: 5400 | AW33: 10.58 | BA33: P5+/1 | BB33: 1650 | BC33: 3.62 | BF33: P5/24 | BG33: 1650 | BH33: 116.29 | CM33: 2260 | CN33: 1794 | CO33: 64 | CQ33: 2436 | CR33: 1100 | CS33: 1526 | CT33: 1050
B34: 1080 | C34: 60core 3.55-4.0GHz P10 | D34: 180core | E34: 3946000 | F34: 4735.8 | G34: 21922.22222 | H34: 26.31 | L34: 980 | M34: 48core 3.55-3.9GHz P9 | N34: 144Core | O34: 2055600 | P34: 3024.2 | Q34: 14275 | R34: 21.00138889 | U34: Cモデル | V34: 880 | W34: 32core 4.35GHz P8 | X34: 32core | Y34: 381000 | Z34: 669.4 | AA34: 11906.25 | AB34: 20.91875 | AF34: 740 | AG34: 8core 3.6GHz P7+ | AH34: 8Core | AI34: 56300 | AJ34: 102.4 | AK34: 7037.5 | AL34: 12.8 | AM34: 1 | AR34: 8 | AS34: 3.5 | AT34: 30100 | AU34: 58.95 | AV34: 3762.5 | AW34: 7.36875 | BA34: P5+/2 | BB34: 1650 | BC34: 10.15 | BF34: P5/32 | BG34: 1650 | BH34: 151.72 | CM34: 2320 | CN34: 998.6 | CO34: 215.1 | CQ34: 2437 | CR34: 2350 | CS34: 1527 | CT34: 2000 | CV34: 2417 | CW34: 10000-
B35: 1080 | C35: 60core 3.55-4.0GHz P10 | D35: 240core | E35: 5266000 | F35: 6314.4 | G35: 21941.66667 | H35: 26.31 | L35: 980 | M35: 48core 3.55-3.9GHz P9 | N35: 192Core | O35: 2743000 | P35: 4032.3 | Q35: 14286.45833 | R35: 21.0015625 | V35: 880 | W35: 32core 4.35GHz P8 | X35: 64core | Y35: 755000 | Z35: 1338.8 | AA35: 11796.875 | AB35: 20.91875 | AF35: 740 | AG35: 8core 3.6GHz P7+ | AH35: 16Core | AI35: 106500 | AJ35: 197.7 | AK35: 6656.25 | AL35: 12.35625 | AM35: 2 | AR35: 8 | AS35: 4.2 | AT35: 35500 | AU35: 68.38 | AV35: 4437.5 | AW35: 8.5475 | BA35: P5+/2 | BB35: 1900 | BC35: 11.16 | BF35: P5+/8 | BG35: 2100 | BH35: 55.74 | CM35: 2321 | CN35: 1794 | CO35: 386.4 | CQ35: 2438 | CR35: 3700 | CW35: 13200
V36: 880 | W36: 32core 4.35GHz P8 | X36: 96core | Y36: 1144000 | Z36: 2008.2 | AA36: 11916.66667 | AB36: 20.91875 | AF36: 740 | AG36: 8core 4.2GHz P7+ | AH36: 8Core | AI36: 64500 | AJ36: 115.5 | AK36: 8062.5 | AL36: 14.4375 | AM36: 1 | AR36: 8 | AS36: 4.4 | AT36: 36200 | AU36: 70.97 | AV36: 4525 | AW36: 8.87125 | BA36: P5+/1 | BB36: 2100 | BC36: 6.63 | BF36: P5+/16 | BG36: 2100 | BH36: 108.13 | CM36: 2322 | CN36: 1794 | CO36: 579.6 | CQ36: 0150 | CR36: 1100 | CS36: - | CT36: 0
V37: 880 | W37: 32core 4.35GHz P8 | X37: 128core | Y37: 1523000 | Z37: 2677.6 | AA37: 11898.4375 | AB37: 20.91875 | AF37: 740 | AG37: 8core 4.2GHz P7+ | AH37: 16Core | AI37: 120000 | AJ37: 223.1 | AK37: 7500 | AL37: 13.94375 | AM37: 2 | AR37: 8 | AS37: 4.7 | AT37: 40100 | AU37: 74.89 | AV37: 5012.5 | AW37: 9.36125 | BA37: P5+/2 | BB37: 2100 | BC37: 12.46 | BF37: P5+/24 | BG37: 2100 | BH37: 155.51 | BU37: Model | BV37: CPU | BW37: CPW | BX37: 5250 | BY37: Model | BZ37: CPU FC | CA37: Way数 | CB37: CPW | CC37: 対話FC | CD37: 5250 | CL37: S40 | CM37: 2256 | CN37: 1794 | CO37: 64 | CQ37: 0151 | CR37: 2350 | CS37: - | CT37: 0 | CV37: 2418 | CW37: 10000
V38: 880 | W38: 40core 4.19GHz P8 | X38: 40Core | Y38: 460000 | Z38: 800 | AA38: 11500 | AB38: 20 | AF38: 750 | AG38: 6core 3.3GHz P7 | AH38: 6core | AI38: 37200 | AJ38: 70.07 | AK38: 6200 | AL38: 11.67833333 | AM38: 1 | AR38: 8 | AS38: 5 | AT38: 40300 | AU38: 78.71 | AV38: 5037.5 | AW38: 9.83875 | AZ38: p5-520Q | BA38: P5+/4 | BB38: 1500 | BC38: 18.75 | BF38: P5+/32 | BG38: 2100 | BH38: 202.88 | BU38: 800 | BV38: 2463 | BW38: 300 | BX38: 25 | BY38: 825 | BZ38: 2473 | CA38: 3/6Way | CB38: 3600- | CC38: 7416 | CD38: 0 | CM38: 2261 | CN38: 2340 | CO38: 64 | CQ38: 0152 | CR38: 3700 | CS38: - | CT38: 0
V39: 880 | W39: 40core 4.19GHz P8 | X39: 80Core | Y39: 911000 | Z39: 1599.9 | AA39: 11387.5 | AB39: 19.99875 | AF39: 750 | AG39: 6core 3.3GHz P7 | AH39: 12core | AI39: 69200 | AJ39: 134.54 | AK39: 5766.666667 | AL39: 11.21166667 | AM39: 2 | AR39: 12 | AS39: 3.5 | AT39: 43100 | AU39: 83.35 | AV39: 3591.666667 | AW39: 6.945833333 | BA39: P5+/4 | BB39: 1650 | BC39: 20.25 | BE39: p5-595 | BF39: P5/16 | BG39: 1650 | BH39: 80.86 | BV39: 2464 | BW39: 950 | BX39: 50 | CB39: 6600 | CC39: 7418 | CD39: Full | CM39: 2207 | CN39: 3660 | CO39: 120 | CP39: 830 | CQ39: 2400 | CR39: 1850 | CS39: 1531 | CT39: 70 | CV39: 2419 | CW39: 13200-
V40: 880 | W40: 40core 4.19GHz P8 | X40: 120core | Y40: 1366000 | Z40: 2400 | AA40: =Y40/LEFT($X40,SEARCH("core",$X40)-1) -> 11383.33333 | AB40: 20 | AF40: 750 | AG40: 6core 3.3GHz P7 | AH40: 18core | AI40: 94900 | AJ40: 193.4 | AK40: 5272.222222 | AL40: 10.74444444 | AM40: 3 | AR40: 12 | AS40: 4.4 | AT40: 51500 | AU40: 100.35 | AV40: 4291.666667 | AW40: 8.3625 | AZ40: p5-550 | BA40: P5/1 | BB40: 1500 | BC40: 3.25 | BF40: P5/24 | BG40: 1650 | BH40: 116.29 | CC40: 7434 | CD40: HA | CM40: 2208 | CN40: 4550 | CO40: 120 | CQ40: 2402 | CR40: 4200 | CS40: 1532 | CT40: 120 | CW40: 16500
V41: 880 | W41: 40core 4.19GHz P8 | X41: 160core | Y41: 1822000 | Z41: 3200 | AA41: 11387.5 | AB41: 20 | AF41: 750 | AG41: 6core 3.3GHz P7 | AH41: 24core | AI41: 135300 | AJ41: 252.26 | AK41: 5637.5 | AL41: 10.51083333 | AM41: 4 | AR41: 12 | AS41: 5 | AT41: 56800 | AU41: 111.3 | AV41: 4733.333333 | AW41: 9.275 | BA41: P5/2 | BB41: 1500 | BC41: 9.13 | BF41: P5/32 | BG41: 1650 | BH41: 151.72 | BU41: 810 | BV41: 2465 | BW41: 750 | BX41: 7404 | BZ41: 2495 | CA41: 1/6Way | CB41: 1250- | CC41: 7439 | CD41: CBU | CM41: 2340 | CN41: 3660 | CO41: 1050 | CQ41: 2403 | CR41: 7350 | CS41: 1533 | CT41: 240
V42: 880 | W42: 48core 4.00GHz P8 | X42: 48Core | Y42: 518000 | Z42: 912.6 | AA42: 10791.66667 | AB42: 19.0125 | AF42: 750 | AG42: 8core 3.0GHz P7 | AH42: 8core | AI42: 44600 | AJ42: 81.24 | AK42: 5575 | AL42: 10.155 | AM42: 1 | AR42: 16 | AS42: 3.5 | AT42: 57600 | AU42: 105.75 | AV42: 3600 | AW42: 6.609375 | BA42: P5/4 | BB42: 1500 | BC42: 18.2 | BF42: P5/40 | BG42: 1650 | BH42: 182.07 | BX42: 7406 | CB42: 6600 | CM42: 2341 | CN42: 4550 | CO42: 2050 | CQ42: 2349 | CR42: 4200- | CS42: 1534 | CT42: 560 | CV42: 2420 | CW42: 16500
V43: 880 | W43: 48core 4.00GHz P8 | X43: 96Core | Y43: 1034000 | Z43: 1825.1 | AA43: 10770.83333 | AB43: 19.01145833 | AF43: 750 | AG43: 8core 3.0GHz P7 | AH43: 16core | AI43: 82600 | AJ43: 155.99 | AK43: 5162.5 | AL43: 9.749375 | AM43: 2 | AR43: 16 | AS43: 4.2 | AT43: 68600 | AU43: 122.67 | AV43: 4287.5 | AW43: 7.666875 | BA43: P5/2 | BB43: 1650 | BC43: 9.86 | BF43: P5/48 | BG43: 1650 | BH43: 212.41 | BX43: 7445 | CR43: 7350 | CS43: 1535 | CT43: 1050 | CV43: 2461 | CW43: 20200
V44: 880 | W44: 48core 4.00GHz P8 | X44: 144Core | Y44: 1551000 | Z44: 2737.7 | AA44: 10770.83333 | AB44: 19.01180556 | AF44: 750 | AG44: 8core 3.0GHz P7 | AH44: 24core | AI44: 122500 | AJ44: 224.23 | AK44: 5104.166667 | AL44: 9.342916667 | AM44: 3 | AR44: 16 | AS44: 4.4 | AT44: 70000 | AU44: 127.32 | AV44: 4375 | AW44: 7.9575 | BA44: P5/4 | BB44: 1650 | BC44: 19.66 | BF44: P5/56 | BG44: 1650 | BH44: 242.76 | BV44: 2466 | BW44: 1020 | BX44: 7407 | BY44: 870 | BZ44: 2489 | CA44: 5/8Way | CB44: 7700- | CC44: 7431 | CD44: 0 | CS44: 1536 | CT44: 2000 | CV44: 0158 | CW44: 12000 | CX44: - | CY44: 0
L45: 880 | V45: 880 | W45: 48core 4.00GHz P8 | X45: 192Core | Y45: 2069000 | Z45: 3650.3 | AA45: 10776.04167 | AB45: 19.01197917 | AF45: 750 | AG45: 8core 3.0GHz P7 | AH45: 32core | AI45: 158300 | AJ45: 292.47 | AK45: 4946.875 | AL45: 9.1396875 | AM45: 4 | AR45: 16 | AS45: 4.7 | AT45: 76900 | AU45: 134.35 | AV45: 4806.25 | AW45: 8.396875 | BA45: P5+/2 | BB45: 1650 | BC45: 10.15 | BF45: P5/64 | BG45: 1650 | BH45: 273.1 | BX45: 7409 | CB45: 11500 | CC45: 7433 | CD45: Full | CS45: 1537 | CT45: 4550 | CV45: 0159 | CW45: 20200 | CX45: - | CY45: 0
AF46: 750 | AG46: 8core 3.3GHz P7 | AH46: 8core | AI46: 47800 | AJ46: 86.99 | AK46: 5975 | AL46: 10.87375 | AM46: 1 | AR46: 16 | AS46: 5 | AT46: 77600 | AU46: 141.21 | AV46: 4850 | AW46: 8.825625 | BA46: P5+/4 | BB46: 1650 | BC46: 20.25 | BF46: P5/16 | BG46: 1900 | BH46: 90.67 | BX46: 7446 | CC46: 7435 | CD46: HA | CQ46: 0153 | CR46: 7350 | CS46: - | CT46: 0
AF47: 750 | AG47: 8core 3.3GHz P7 | AH47: 16core | AI47: 88700 | AJ47: 167.01 | AK47: 5543.75 | AL47: 10.438125 | AM47: 2 | AQ47: 595 | AR47: 8 | AS47: 4.2 | AT47: 35500 | AU47: 75.58 | AV47: 4437.5 | AW47: 9.4475 | BA47: P5+/2 | BB47: 1900 | BC47: 11.16 | BF47: P5/24 | BG47: 1900 | BH47: 130.39 | BV47: 2467 | BW47: 1470 | BX47: 7410 | BZ47: 2486 | CA47: 8/16Way | CB47: 11500- | CC47: 7419 | CD47: 0
AF48: 750 | AG48: 8core 3.3GHz P7 | AH48: 24core | AI48: 129700 | AJ48: 140.08 | AK48: 5404.166667 | AL48: 5.836666667 | AM48: 3 | AR48: 8 | AS48: 5 | AT48: 41000 | AU48: 87.1 | AV48: 5125 | AW48: 10.8875 | BA48: P5+/4 | BB48: 1900 | BC48: 22.26 | BF48: P5/32 | BG48: 1900 | BH48: 170.11 | BX48: 7412 | CB48: 20000 | CC48: 7421 | CD48: Full
AF49: 750 | AG49: 8core 3.3GHz P7 | AH49: 32core | AI49: 168800 | AJ49: 313.15 | AK49: 5275 | AL49: 9.7859375 | AM49: 4 | AR49: 16 | AS49: 4.2 | AT49: 66400 | AU49: 142.9 | AV49: 4150 | AW49: 8.93125 | BA49: P5+/2 | BB49: 2100 | BC49: 12.46 | BF49: P5/40 | BG49: 1900 | BH49: 204.14 | BX49: 7447 | CC49: 7436 | CD49: HA
AF50: 750 | AG50: 8core 3.55GHz P7 | AH50: 8core | AI50: 52200 | AJ50: 91.96 | AK50: 6525 | AL50: 11.495 | AM50: 1 | AR50: 16 | AS50: 5 | AT50: 77000 | AU50: 164.67 | AV50: 4812.5 | AW50: 10.291875 | BA50: P5+/4 | BB50: 2100 | BC50: 24.86 | BF50: P5/48 | BG50: 1900 | BH50: 238.16 | BV50: 2469 | BW50: 2700 | BX50: 7428 | BZ50: 2496 | CA50: 2/16Way | CB50: 3200- | CC50: 7440 | CD50: CBU
AF51: 750 | AG51: 8core 3.55GHz P7 | AH51: 16core | AI51: 95700 | AJ51: 176.57 | AK51: 5981.25 | AL51: 11.035625 | AM51: 2 | AR51: 24 | AS51: 4.2 | AT51: 93800 | AV51: 3908.333333 | AW51: 0 | AZ51: p5-550Q | BA51: P5+/4 | BB51: 1500 | BC51: 18.2 | BF51: P5/56 | BG51: 1900 | BH51: 272.18 | BX51: 7430 | CB51: 20000
AF52: 750 | AG52: 8core 3.55GHz P7 | AH52: 24core | AI52: 138500 | AJ52: 253.82 | AK52: =AI52/LEFT($AH52,SEARCH("core",$AH52)-1) -> 5770.833333 | AL52: 10.57583333 | AM52: 3 | AR52: 24 | AS52: 5 | AT52: 108100 | AV52: 4504.166667 | AW52: 0 | BA52: P5+/8 | BB52: 1500 | BC52: 34.46 | BF52: P5/64 | BG52: 1900 | BH52: 306.21 | BX52: 7448 | BY52: 890 | BZ52: 0197 | CA52: 24Way | CB52: 29300 | CC52: - | CD52: 0
AF53: 750 | AG53: 8core 3.55GHz P7 | AH53: 32core | AI53: 181000 | AJ53: 331.06 | AK53: 5656.25 | AL53: 10.345625 | AM53: 4 | AR53: 32 | AS53: 4.2 | AT53: 128000 | AU53: 266.51 | AV53: 4000 | AW53: 8.3284375 | BA53: P5+/4 | BB53: 1650 | BC53: 20.25 | BF53: P5+/16 | BG53: 2100 | BH53: 108.13 | BZ53: 0198 | CA53: 32Way | CB53: 37400 | CC53: - | CD53: 0
AF54: 750 | AG54: 8core 3.2GHz P7 | AH54: 8core | AI54: 47800 | AJ54: 85.29 | AK54: 5975 | AL54: 10.66125 | AM54: 1 | AR54: 32 | AS54: 5 | AT54: 147900 | AU54: 307.12 | AV54: 4621.875 | AW54: 9.5975 | BA54: P5+/8 | BB54: 1650 | BC54: 38.34 | BF54: P5+/24 | BG54: 2100 | BH54: 155.51 | BZ54: 2487 | CA54: 16/24Way | CB54: 20000- | CC54: 1576 | CD54: 120
AF55: 750 | AG55: 8core 3.2GHz P7 | AH55: 16core | AI55: 89600 | AJ55: 163.75 | AK55: 5600 | AL55: 10.234375 | AM55: 2 | AR55: 64 | AS55: 4.2 | AT55: 256200 | AU55: 479.89 | AV55: 4003.125 | AW55: 7.49828125 | AZ55: p5-560Q | BA55: P5+/4 | BB55: 1500 | BC55: 18.75 | BF55: P5+/32 | BG55: 2100 | BH55: 202.88 | CB55: 29300 | CC55: 1577 | CD55: 240
AF56: 750 | AG56: 8core 3.2GHz P7 | AH56: 24core | AI56: 131500 | AJ56: 235.39 | AK56: 5479.166667 | AL56: 9.807916667 | AM56: 3 | AR56: 64 | AS56: 5 | AT56: 294700 | AU56: 553.01 | AV56: 4604.6875 | AW56: 8.64078125 | AX56: * | BA56: P5+/8 | BB56: 1500 | BC56: 35.5 | BF56: P5+/40 | BG56: 2100 | BH56: 243.46 | BZ56: 2488 | CA56: 24/32Way | CB56: 29300- | CC56: 1578 | CD56: 560
AF57: 750 | AG57: 8core 3.2GHz P7 | AH57: 32core | AI57: 171400 | AJ57: 307.03 | AK57: 5356.25 | AL57: 9.5946875 | AM57: 4 | AR57: 4 | AS57: 3.8 | AT57: 26600 | AV57: 6650 | AW57: 0 | BA57: P5+/16 | BB57: 1500 | BC57: 65.24 | BF57: P5+/48 | BG57: 2100 | BH57: 284.04 | CB57: 37400 | CC57: 1579 | CD57: 1050
AF58: 750 | AG58: 8core 3.6GHz P7 | AH58: 8core | AI58: 52700 | AJ58: 93.05 | AK58: 6587.5 | AL58: 11.63125 | AM58: 1 | AR58: 8 | AS58: 3.8 | AT58: 54400 | AU58: 100.75 | AV58: 6800 | AW58: 12.59375 | BA58: P5+/4 | BB58: 1800 | BC58: 21.72 | BF58: P5+/56 | BG58: 2100 | BH58: 324.61 | CC58: 1581 | CD58: 2000
AF59: 750 | AG59: 8core 3.6GHz P7 | AH59: 16core | AI59: 97000 | AJ59: 178.65 | AK59: 6062.5 | AL59: 11.165625 | AM59: 2 | AR59: 8 | AS59: 4.1 | AT59: 57450 | AU59: 115.86 | AV59: 7181.25 | AW59: 14.4825 | BA59: P5+/8 | BB59: 1800 | BC59: 41.12 | BF59: P5+/64 | BG59: 2100 | BH59: 365.19 | CC59: 1583 | CD59: 4550
AF60: 750 | AG60: 8core 3.6GHz P7 | AH60: 24core | AI60: 141400 | AJ60: 256.81 | AK60: 5891.666667 | AL60: 10.70041667 | AM60: 3 | AR60: 16 | AS60: 3.8 | AT60: 105200 | AU60: 195.45 | AV60: 6575 | AW60: 12.215625 | BA60: P5+/16 | BB60: 1800 | BC60: 75.58 | BF60: P5+/16 | BG60: 2300 | BH60: 116.53 | CC60: 1585 | CD60: 10000
AF61: 750 | AG61: 8core 3.6GHz P7 | AH61: 32core | AI61: 183200 | AJ61: 334.97 | AK61: 5725 | AL61: 10.4678125 | AM61: 4 | AR61: 16 | AS61: 4.1 | AT61: 114850 | AU61: 226.97 | AV61: 7178.125 | AW61: 14.185625 | AX61: ** | BF61: P5+/24 | BG61: 2300 | BH61: 167.58 | CC61: 1587 | CD61: 16500
AF62: 750 | AG62: 4core 3.7GHz P7 | AH62: 4core | AI62: 27300 | AJ62: 52.9 | AK62: 6825 | AL62: 13.225 | AM62: 1 | AR62: 24 | AS62: 4.1 | AT62: 172450 | AU62: 326.24 | AV62: 7185.416667 | AW62: 13.59333333 | AX62: ** | BF62: P5+/32 | BG62: 2300 | BH62: 218.64 | CC62: 1588 | CD62: 20200
AF63: 750 | AG63: 4core 3.7GHz P7 | AH63: 8core | AI63: 51000 | AJ63: 101.57 | AK63: 6375 | AL63: 12.69625 | AM63: 2 | AR63: 32 | AS63: 3.8 | AT63: 177400 | AU63: 362.7 | AV63: 5543.75 | AW63: 11.334375 | BF63: P5+/40 | BG63: 2300 | BH63: 262.37 | CC63: 1591 | CD63: 39400
AF64: 750 | AG64: 4core 3.7GHz P7 | AH64: 12core | AI64: 74700 | AJ64: 146 | AK64: 6225 | AL64: 12.16666667 | AM64: 3 | AR64: 32 | AS64: 4.1 | AT64: 229650 | AU64: 425.5 | AV64: 7176.5625 | AW64: 13.296875 | AX64: ** | BF64: P5+/48 | BG64: 2300 | BH64: 306.1 | BZ64: 2497 | CA64: 16/24Way | CB64: 20000- | CC64: 7422 | CD64: 0
AF65: 750 | AG65: 4core 3.7GHz P7 | AH65: 16core | AI65: 97700 | AJ65: 190.44 | AK65: 6106.25 | AL65: 11.9025 | AM65: 4 | AR65: 48 | AS65: 3.8 | AT65: 265200 | AU65: 523.89 | AV65: 5525 | AW65: 10.914375 | BF65: P5+/56 | BG65: 2300 | BH65: 349.83 | CB65: 29300 | CC65: 7424 | CD65: Full
AF66: 750 | AG66: 6core 3.7GHz P7 | AH66: 6core | AI66: 40800 | AJ66: 76.71 | AK66: 6800 | AL66: 12.785 | AM66: 1 | AR66: 64 | AS66: 3.8 | AT66: 343050 | AU66: 685.09 | AV66: 5360.15625 | AW66: 10.70453125 | AX66: * | BF66: P5+/64 | BG66: 2300 | BH66: 393.55 | CC66: 7437 | CD66: HA
AF67: 750 | AG67: 6core 3.7GHz P7 | AH67: 12core | AI67: 75500 | AJ67: 147.27 | AK67: 6291.666667 | AL67: 12.2725 | AM67: 2 | AR67: 24 | AS67: 3.7 | AT67: 149100 | AU67: 273.51 | AV67: 6212.5 | AW67: 11.39625 | BZ67: 2498 | CA67: 24/32Way | CB67: 29300- | CC67: 7425 | CD67: 0
AF68: 750 | AG68: 6core 3.7GHz P7 | AH68: 18core | AI68: 109100 | AJ68: 211.71 | AK68: 6061.111111 | AL68: 11.76166667 | AM68: 3 | AR68: 24 | AS68: 4.25 | AT68: 162100 | AU68: 347.36 | AV68: =AT68/AR68 -> 6754.166667 | AW68: =AU68/AR68 -> 14.47333333 | CB68: 37400 | CC68: 7427 | CD68: Full
AF69: 750 | AG69: 6core 3.7GHz P7 | AH69: 24core | AI69: 145600 | AJ69: 276.14 | AK69: 6066.666667 | AL69: 11.50583333 | AM69: 4 | AR69: 32 | AS69: 4 | AT69: 204300 | AU69: 372.27 | AV69: 6384.375 | AW69: 11.6334375 | CC69: 7438 | CD69: HA
AF70: 750 | AG70: 8core 3.5GHz P7+ | AH70: 8core | AI70: 52000 | AJ70: 104.5 | AK70: 6500 | AL70: 13.0625 | AM70: 2 | AR70: 32 | AS70: 4.25 | AT70: 218400 | AU70: 463.14 | AV70: 6825 | AW70: 14.473125 | BZ70: 2499 | CA70: 4/32Way | CB70: 5600- | CC70: 7441 | CD70: CBU
AF71: 750 | AG71: 8core 3.5GHz P7+ | AH71: 16core | AI71: 96000 | AJ71: 197 | AK71: 6000 | AL71: 12.3125 | AM71: 4 | AR71: 48 | AS71: 3.7 | AT71: 288500 | AU71: 547.02 | AV71: 6010.416667 | AW71: 11.39625 | CB71: 37400
AF72: 750 | AG72: 8core 3.5GHz P7+ | AH72: 24core | AI72: 141500 | AJ72: 275.9 | AK72: 5895.833333 | AL72: 11.49583333 | AM72: 6 | AR72: 64 | AS72: 4 | AT72: 399200 | AU72: 744.54 | AV72: 6237.5 | AW72: 11.6334375
AF73: 750 | AG73: 8core 3.5GHz P7+ | AH73: 32core | AI73: 185000 | AJ73: 354.9 | AK73: 5781.25 | AL73: 11.090625 | AM73: 8 | AQ73: 570(32) | AR73: 4 | AS73: 4.2 | AT73: 16200 | AU73: 35.5 | AV73: 4050 | AW73: 8.875 | AX73: 32coreカード
AF74: 750 | AG74: 8core 4.0GHz P7+ | AH74: 8core | AI74: 59000 | AJ74: 117.1 | AK74: 7375 | AL74: 14.6375 | AM74: 2 | AR74: 8 | AS74: 4.2 | AT74: 31900 | AU74: 64.96 | AV74: 3987.5 | AW74: 8.12 | AX74: 32coreカード
AF75: 750 | AG75: 8core 4.0GHz P7+ | AH75: 16core | AI75: 108000 | AJ75: 220.7 | AK75: 6750 | AL75: 13.79375 | AM75: 4 | AR75: 16 | AS75: 4.2 | AT75: 56400 | AU75: 113.68 | AV75: 3525 | AW75: 7.105 | AX75: 32coreカード
AF76: 750 | AG76: 8core 4.0GHz P7+ | AH76: 24core | AI76: 158000 | AJ76: 309.2 | AK76: 6583.333333 | AL76: 12.88333333 | AM76: 6 | AR76: 24 | AS76: 4.2 | AT76: 81600 | AU76: 153.46 | AV76: 3400 | AW76: 6.394166667 | AX76: 32coreカード
AF77: 750 | AG77: 8core 4.0GHz P7+ | AH77: 32core | AI77: 208000 | AJ77: 397.7 | AK77: 6500 | AL77: =AJ77/LEFT($AH77,SEARCH("core",$AH77)-1) -> 12.428125 | AM77: 8 | AR77: 32 | AS77: 4.2 | AT77: 104800 | AU77: 193.25 | AV77: 3275 | AW77: 6.0390625 | AX77: 32coreカード
AF78: 760 | AG78: 12core 3.136GHz P7+ | AH78: 12core | AI78: 69800 | AJ78: 142.1 | AK78: 5816.666667 | AL78: 11.84166667 | AM78: 2 | AQ78: JS12 | AR78: 2 | AS78: 3.8 | AT78: 7100 | AU78: 14.71 | AV78: 3550 | AW78: 7.355
AF79: 760 | AG79: 12core 3.136GHz P7+ | AH79: 24core | AI79: 129000 | AJ79: 264.8 | AK79: 5375 | AL79: 11.03333333 | AM79: 4 | AQ79: JS22 | AR79: 4 | AS79: 4 | AT79: 13800 | AU79: 30.26 | AV79: 3450 | AW79: 7.565
AF80: 760 | AG80: 12core 3.136GHz P7+ | AH80: 36core | AI80: 195700 | AJ80: 370.7 | AK80: 5436.111111 | AL80: 10.29722222 | AM80: 6 | AQ80: JS23 | AR80: 4 | AS80: 4.2 | AT80: 14400 | AU80: 36.28 | AV80: 3600 | AW80: 9.07
AF81: 760 | AG81: 12core 3.136GHz P7+ | AH81: 48core | AI81: 258000 | AJ81: 476.7 | AK81: 5375 | AL81: 9.93125 | AM81: 8 | AQ81: JS43 | AR81: 8 | AS81: 4.2 | AT81: 24050 | AU81: 68.2 | AV81: 3006.25 | AW81: 8.525
AF82: 760 | AG82: 12core 3.416GHz P7+ | AH82: 12core | AI82: 75200 | AJ82: 151.4 | AK82: 6266.666667 | AL82: 12.61666667 | AM82: 2 | AQ82: PS700 | AR82: 4 | AS82: 3 | AT82: 21100 | AU82: 45.13 | AV82: 5275 | AW82: 11.2825
AF83: 760 | AG83: 12core 3.416GHz P7+ | AH83: 24core | AI83: 137000 | AJ83: 282.1 | AK83: 5708.333333 | AL83: 11.75416667 | AM83: 4 | AQ83: PS701 | AR83: 8 | AS83: 3 | AT83: 42100 | AU83: 81.24 | AV83: 5262.5 | AW83: 10.155
AF84: 760 | AG84: 12core 3.416GHz P7+ | AH84: 36core | AI84: 209000 | AJ84: 395 | AK84: =AI84/LEFT($AH84,SEARCH("core",$AH84)-1) -> 5805.555556 | AL84: 10.97222222 | AM84: 6 | AQ84: PS702 | AR84: 16 | AS84: 3 | AT84: 76300 | AU84: 154.36 | AV84: 4768.75 | AW84: 9.6475
AF85: 760 | AG85: 12core 3.416GHz P7+ | AH85: 48core | AI85: 274000 | AJ85: 507.8 | AK85: 5708.333333 | AL85: 10.57916667 | AM85: 8 | AQ85: PS703 | AR85: 16 | AS85: 2.4 | AT85: 64000 | AU85: 134.11 | AV85: 4000 | AW85: 8.381875
AF86: 770 | AG86: 12core 3.5GHz P7 | AH86: 4core | AI86: 24900 | AK86: 6225 | AL86: 12.09 | AQ86: PS704 | AR86: 32 | AS86: 2.4 | AT86: 110000 | AU86: 251.45 | AV86: 3437.5 | AW86: 7.8578125
AF87: 770 | AG87: 12core 3.5GHz P7 | AH87: 6core | AI87: 37400 | AJ87: 72.55 | AK87: 6233.333333 | AL87: =AJ87/LEFT($AH87,SEARCH("core",$AH87)-1) -> 12.09166667
AF88: 770 | AG88: 12core 3.5GHz P7 | AH88: 12core | AI88: 73100 | AJ88: 140.75 | AK88: 6091.666667 | AL88: =AJ88/LEFT($AH88,SEARCH("core",$AH88)-1) -> 11.72916667
AF89: 770 | AG89: 12core 3.5GHz P7 | AH89: 18core | AI89: 99000 | AK89: 5500 | AL89: 10.88
AF90: 770 | AG90: 12core 3.5GHz P7 | AH90: 24core | AI90: 131050 | AJ90: 261.19 | AK90: 5460.416667 | AL90: =AJ90/LEFT($AH90,SEARCH("core",$AH90)-1) -> 10.88291667
AF91: 770 | AG91: 12core 3.5GHz P7 | AH91: 48core | AI91: 248550 | AJ91: 493.37 | AK91: 5178.125 | AL91: =AJ91/LEFT($AH91,SEARCH("core",$AH91)-1) -> 10.27854167
AF92: 770 | AG92: 16core 3.1GHz P7 | AH92: 4core | AI92: 22750 | AK92: 5687.5 | AL92: 10.65
AF93: 770 | AG93: 16core 3.1GHz P7 | AH93: 8core | AI93: 45000 | AJ93: 85.2 | AK93: 5625 | AL93: =AJ93/LEFT($AH93,SEARCH("core",$AH93)-1) -> 10.65
AF94: 770 | AG94: 16core 3.1GHz P7 | AH94: 16core | AI94: 88800 | AJ94: 165.3 | AK94: =AI94/LEFT($AH94,SEARCH("core",$AH94)-1) -> 5550 | AL94: 10.33125
AF95: 770 | AG95: 16core 3.1GHz P7 | AH95: 32core | AI95: 155850 | AJ95: 306.74 | AK95: 4870.3125 | AL95: 9.585625
AF96: 770 | AG96: 16core 3.1GHz P7 | AH96: 48core | AI96: 229800 | AJ96: 443.06 | AK96: 4787.5 | AL96: 9.230416667
AF97: 770 | AG97: 16core 3.1GHz P7 | AH97: 64core | AI97: 292700 | AJ97: 579.39 | AK97: 4573.4375 | AL97: 9.05296875 | AM97: MMD/MHDは、SPTの数値を参照してます。
AF98: 770 | AG98: 12core 3.72GHz P7 | AH98: 12core | AI98: 77000 | AJ98: 147.5 | AK98: 6416.666667 | AL98: 12.29166667 | AM98: 特にMHDの数値は、正しく無さそうです。
AF99: 770 | AG99: 12core 3.72GHz P7 | AH99: 24core | AI99: 135900 | AJ99: 273.7 | AK99: 5662.5 | AL99: 11.40416667 | AM99: 左表は暫定値としてお読みください。
AF100: 770 | AG100: 12core 3.72GHz P7 | AH100: 36core | AI100: 211000 | AJ100: 395.4 | AK100: 5861.111111 | AL100: 10.98333333
AF101: 770 | AG101: 12core 3.72GHz P7 | AH101: 48core | AI101: 270500 | AJ101: 517 | AK101: 5635.416667 | AL101: 10.77083333
AF102: 770 | AG102: 16core 3.3GHz P7 | AH102: 16core | AI102: 93000 | AJ102: 173.1 | AK102: 5812.5 | AL102: 10.81875
AF103: 770 | AG103: 16core 3.3GHz P7 | AH103: 32core | AI103: 162000 | AJ103: 321.2 | AK103: 5062.5 | AL103: 10.0375
AF104: 770 | AG104: 16core 3.3GHz P7 | AH104: 48core | AI104: 252700 | AJ104: 464 | AK104: 5264.583333 | AL104: 9.666666667
AF105: 770 | AG105: 16core 3.3GHz P7 | AH105: 64core | AI105: 321000 | AJ105: 606.8 | AK105: 5015.625 | AL105: 9.48125
AF106: 770 | AG106: 12core 4.22GHz P7＋ | AH106: 12core | AI106: 90000 | AJ106: 184.2 | AK106: 7500 | AL106: 15.35
AF107: 770 | AG107: 12core 4.22GHz P7＋ | AH107: 24core | AI107: 154800 | AJ107: 345.1 | AK107: 6450 | AL107: 14.37916667
AF108: 770 | AG108: 12core 4.22GHz P7＋ | AH108: 36core | AI108: 230700 | AJ108: 478.9 | AK108: 6408.333333 | AL108: 13.30277778
AF109: 770 | AG109: 12core 4.22GHz P7＋ | AH109: 48core | AI109: 306600 | AJ109: 612.7 | AK109: 6387.5 | AL109: 12.76458333
AF110: 770 | AG110: 16core 3.80GHz P7＋ | AH110: 16core | AI110: 110000 | AJ110: 219.3 | AK110: =AI110/LEFT($AH110,SEARCH("core",$AH110)-1) -> 6875 | AL110: 13.70625
AF111: 770 | AG111: 16core 3.80GHz P7＋ | AH111: 32core | AI111: 191500 | AJ111: 410.8 | AK111: 5984.375 | AL111: 12.8375
AF112: 770 | AG112: 16core 3.80GHz P7＋ | AH112: 48core | AI112: 290500 | AJ112: 570.1 | AK112: 6052.083333 | AL112: 11.87708333
AF113: 770 | AG113: 16core 3.80GHz P7＋ | AH113: 64core | AI113: 379300 | AJ113: 729.3 | AK113: 5926.5625 | AL113: 11.3953125
AF114: 780 | AG114: 8core 3.86GHz P7 | AH114: 16core | AI114: 105200 | AJ114: 195.45 | AK114: 6575 | AL114: 12.215625
AF115: 780 | AG115: 8core 3.86GHz P7 | AH115: 32core | AI115: 177400 | AJ115: 362.7 | AK115: 5543.75 | AL115: 11.334375
AF116: 780 | AG116: 8core 3.86GHz P7 | AH116: 48core | AI116: 265200 | AJ116: 523.89 | AK116: 5525 | AL116: 10.914375
AF117: 780 | AG117: 8core 3.86GHz P7 | AH117: 64core | AI117: 343050 | AJ117: 685.09 | AK117: 5360.15625 | AL117: 10.70453125
AF118: 780 | AG118: 8core 3.92GHz P7 | AH118: 16core | AI118: 106000 | AJ118: 197.6 | AK118: 6625 | AL118: 12.35
AF119: 780 | AG119: 8core 3.92GHz P7 | AH119: 32core | AI119: 183000 | AJ119: 366.6 | AK119: 5718.75 | AL119: 11.45625
AF120: 780 | AG120: 8core 3.92GHz P7 | AH120: 48core | AI120: 286500 | AJ120: 529.6 | AK120: 5968.75 | AL120: 11.03333333
AF121: 780 | AG121: 8core 3.92GHz P7 | AH121: 64core | AI121: 363000 | AJ121: 692.5 | AK121: 5671.875 | AL121: 10.8203125
AF122: 780 | AG122: 16core 4.42GHz P7＋ | AH122: 16core | AI122: 123500 | AJ122: 245.7 | AK122: 7718.75 | AL122: 15.35625
AF123: 780 | AG123: 16core 4.42GHz P7＋ | AH123: 32core | AI123: 214000 | AJ123: 460.3 | AK123: 6687.5 | AL123: 14.384375
AF124: 780 | AG124: 16core 4.42GHz P7＋ | AH124: 48core | AI124: 326100 | AJ124: 638.7 | AK124: 6793.75 | AL124: 13.30625
AF125: 780 | AG125: 16core 4.42GHz P7＋ | AH125: 64core | AI125: 424400 | AJ125: 817.1 | AK125: 6631.25 | AL125: 12.7671875
AF126: 780 | AG126: 32core 3.72GHz P7＋ | AH126: 32core | AI126: 209500 | AJ126: 383.9 | AK126: 6546.875 | AL126: 11.996875
AF127: 780 | AG127: 32core 3.72GHz P7＋ | AH127: 64core | AI127: 414900 | AJ127: 690.1 | AK127: 6482.8125 | AL127: 10.7828125
AF128: 780 | AG128: 32core 3.72GHz P7＋ | AH128: 96core | AI128: 622300 | AJ128: 1151.6 | AK128: 6482.291667 | AL128: 11.99583333
AF129: 780 | AG129: 32core 3.72GHz P7＋ | AH129: 128core | AI129: 829800 | AJ129: 1380.2 | AK129: 6482.8125 | AL129: 10.7828125
AF130: 795 | AG130: 8core 3.86GHz P7 | AH130: 16core | AI130: 105200 | AJ130: 195.45 | AK130: 6575 | AL130: 12.215625
AF131: 795 | AG131: 8core 3.86GHz P7 | AH131: 32core | AI131: 177400 | AJ131: 362.7 | AK131: 5543.75 | AL131: 11.334375
AF132: 795 | AG132: 8core 3.86GHz P7 | AH132: 48core | AI132: 265200 | AJ132: 523.89 | AK132: 5525 | AL132: 10.914375
AF133: 795 | AG133: 8core 3.86GHz P7 | AH133: 64core | AI133: 343050 | AJ133: 685.09 | AK133: 5360.15625 | AL133: 10.70453125
AF134: 795 | AG134: 8core 3.92GHz P7 | AH134: 16core | AI134: 106000 | AJ134: 197.6 | AK134: 6625 | AL134: 12.35
AF135: 795 | AG135: 8core 3.92GHz P7 | AH135: 32core | AI135: 183000 | AJ135: 366.6 | AK135: 5718.75 | AL135: 11.45625
AF136: 795 | AG136: 8core 3.92GHz P7 | AH136: 48core | AI136: 286500 | AJ136: 529.6 | AK136: 5968.75 | AL136: 11.03333333
AF137: 795 | AG137: 8core 3.92GHz P7 | AH137: 64core | AI137: 363000 | AJ137: 692.5 | AK137: 5671.875 | AL137: 10.8203125
AF138: 795 | AG138: 24core 3.7GHz P7 | AH138: 24core | AI138: 149100 | AJ138: 273.51 | AK138: 6212.5 | AL138: 11.39625
AF139: 795 | AG139: 24core 3.7GHz P7 | AH139: 48core | AI139: 288500 | AJ139: 547.02 | AK139: 6010.416667 | AL139: 11.39625
AF140: 795 | AG140: 24core 3.7GHz P7 | AH140: 72core | AJ140: 820.53 | AK140: 0 | AL140: 11.39625
AF141: 795 | AG141: 24core 3.7GHz P7 | AH141: 96core | AJ141: 1094.04 | AK141: 0 | AL141: 11.39625
AF142: 795 | AG142: 24core 3.7GHz P7 | AH142: 120core | AJ142: 1367.55 | AK142: =AI142/LEFT($AH142,SEARCH("core",$AH142)-1) -> 0 | AL142: 11.39625
AF143: 795 | AG143: 24core 3.7GHz P7 | AH143: 144core | AJ143: 1641.06 | AK143: 0 | AL143: 11.39625
AF144: 795 | AG144: 24core 3.7GHz P7 | AH144: 168core | AJ144: 1914.57 | AK144: 0 | AL144: 11.39625
AF145: 795 | AG145: 24core 3.7GHz P7 | AH145: 192core | AJ145: 2188.08 | AK145: 0 | AL145: 11.39625
AF146: Blade Center | AG146: 32core 4.0GHz P7 | AH146: 32core | AI146: 204300 | AJ146: 372.27 | AK146: 6384.375 | AL146: 11.6334375
AG147: 32core 4.0GHz P7 | AH147: 64core | AI147: 399200 | AJ147: 744.54 | AK147: 6237.5 | AL147: 11.6334375
AG148: 32core 4.0GHz P7 | AH148: 96core | AJ148: 1116.81 | AK148: 0 | AL148: 11.6334375
AG149: 32core 4.0GHz P7 | AH149: 128core | AJ149: 1489.08 | AK149: 0 | AL149: 11.6334375
AG150: 32core 4.0GHz P7 | AH150: 160core | AJ150: 1861.35 | AK150: 0 | AL150: 11.6334375
AF151: Pure Flex | AG151: 32core 4.0GHz P7 | AH151: 192core | AJ151: 2233.62 | AK151: 0 | AL151: 11.6334375
AG152: 32core 4.0GHz P7 | AH152: 224core | AJ152: 2605.89 | AK152: 0 | AL152: 11.6334375
AG153: 32core 4.0GHz P7 | AH153: 256core | AJ153: 2978.16 | AK153: 0 | AL153: 11.6334375
AG154: PS700 | AH154: 4core | AI154: 21100 | AJ154: 45.13 | AK154: 5275 | AL154: 11.2825
AG155: PS701 | AH155: 8core | AI155: 42100 | AJ155: 81.24 | AK155: 5262.5 | AL155: 10.155
AG156: PS702 | AH156: 16core | AI156: 76300 | AJ156: 154.36 | AK156: 4768.75 | AL156: 9.6475
AG157: PS703 | AH157: 16core | AI157: 64000 | AJ157: 134.11 | AK157: 4000 | AL157: 8.381875
AG158: PS704 | AH158: 32core | AI158: 110000 | AJ158: 251.45 | AK158: 3437.5 | AL158: 7.8578125
AG159: P260 3.3GHz （2x4c） | AH159: 8core | AI159: 38500 | AJ159: 92.8 | AK159: 4812.5 | AL159: 11.6
AG160: P260 3.22GHz P7 | AH160: 16core | AI160: 80500 | AJ160: 163.8 | AK160: 5031.25 | AL160: 10.2375
AG161: P260 3.55GHz P7 | AH161: 16core | AI161: 87000 | AJ161: 176.6 | AK161: 5437.5 | AL161: 11.0375
AG162: P260 4.08GHz P7+ | AH162: 8Core | AI162: 51400 | AJ162: 115.5 | AK162: 6425 | AL162: 14.4375
AG163: P260 3.61GHz P7+ | AH163: 16Core | AI163: 99500 | AJ163: 197.7 | AK163: 6218.75 | AL163: 12.35625
AG164: P260 4.11GHz P7+ | AH164: 16Core | AI164: 110000 | AJ164: 218.5 | AK164: 6875 | AL164: 13.65625
AG165: P460 3.3GHz （4x4c） | AH165: 16core | AI165: 80500 | AJ165: 174 | AK165: 5031.25 | AL165: 10.875
AG166: P460 3.22GHz P7 | AH166: 32core | AI166: 150000 | AJ166: 307 | AK166: 4687.5 | AL166: 9.59375
AG167: P460 3.55GHz P7 | AH167: 32core | AI167: 162000 | AJ167: 331.1 | AK167: =AI167/LEFT($AH167,SEARCH("core",$AH167)-1) -> 5062.5 | AL167: =AJ167/LEFT($AH167,SEARCH("core",$AH167)-1) -> 10.346875
AG168: P460 3.6GHz P7+ | AH168: 32Core | AI168: 198900 | AK168: =AI168/LEFT($AH168,SEARCH("core",$AH168)-1) -> 6215.625
AG169: P460 4.1GHz P7+ | AH169: 32Core | AI169: 219900 | AK169: =AI169/LEFT($AH169,SEARCH("core",$AH169)-1) -> 6871.875
AG170: P460 4.0GHz P7+ | AH170: 16Core | AI170: 109500 | AK170: =AI170/LEFT($AH170,SEARCH("core",$AH170)-1) -> 6843.75
AF171: =V4 -> 812 | AG171: =W4 -> 1core 3.02GHz P8 | AH171: =X4 -> 1core | AI171: 9880 | AJ171: 0 | AK171: 9880 | AL171: 0
AF172: 812 | AG172: 4core 3.02GHz P8 | AH172: 4core | AI172: 0 | AJ172: 62.5 | AK172: 0 | AL172: 15.625
AF173: 814 | AG173: 4core 3.02GHz P8 | AH173: 4core | AI173: 39500 | AJ173: 62.5 | AK173: 9875 | AL173: 15.625
AF174: 814 | AG174: 6core 3.02GHz P8 | AH174: 6core | AI174: 59500 | AJ174: 91.1 | AK174: 9916.666667 | AL174: 15.18333333
AF175: 814 | AG175: 8core 3.72GHz P8 | AH175: 8core | AI175: 85500 | AJ175: 134.5 | AK175: 10687.5 | AL175: 16.8125
AF176: 822 | AG176: 6core 3.89GHz P8 | AH176: 6core | AI176: 76500 | AJ176: 112.9 | AK176: 12750 | AL176: 18.81666667
AF177: 822 | AG177: 6core 3.89GHz P8 | AH177: 12core | AI177: 153000 | AJ177: 220.2 | AK177: 12750 | AL177: 18.35
AF178: 822 | AG178: 8core 4.15GHz P8 | AH178: 8core | AI178: 108000 | AJ178: 155.1 | AK178: 13500 | AL178: 19.3875
AF179: 822 | AG179: 8core 4.15GHz P8 | AH179: 16core | AI179: 216000 | AJ179: 302.4 | AK179: 13500 | AL179: 18.9
AF180: 822 | AG180: 10core 3.42GHz P8 | AH180: 10core | AI180: 115000 | AJ180: 166.2 | AK180: 11500 | AL180: 16.62
AF181: 822 | AG181: 10core 3.42GHz P8 | AH181: 20core | AI181: 230000 | AJ181: 324 | AK181: 11500 | AL181: 16.2
AF182: 824 | AG182: 6core 3.89GHz P8 | AH182: 6Core | AI182: 72000 | AJ182: 112.9 | AK182: 12000 | AL182: 18.81666667
AF183: 824 | AG183: 6core 3.89GHz P8 | AH183: 12Core | AI183: 130000 | AJ183: 220.2 | AK183: 10833.33333 | AL183: 18.35
AF184: 824 | AG184: 8core 4.15GHz P8 | AH184: 4 | AI184: 94500 | AJ184: 155.1
AF185: 824 | AG185: 8core 4.15GHz P8 | AH185: 16Core | AI185: 173500 | AJ185: 302.4 | AK185: 10843.75 | AL185: 18.9
AF186: 824 | AG186: 12core 3.52GHz P8 | AH186: 24Core | AI186: 230500 | AJ186: 394.2 | AK186: 9604.166667 | AL186: 16.425
AF187: 870 | AG187: 32core 4.02GHz P8 | AH187: 32core | AI187: 359000 | AJ187: 630.4 | AK187: 11218.75 | AL187: 19.7
AF188: 870 | AG188: 32core 4.02GHz P8 | AH188: 64core | AI188: 711000 | AJ188: 1260.8 | AK188: 11109.375 | AL188: 19.7
AF189: 870 | AG189: 40core 4.19GHz P8 | AH189: 40Core | AI189: 460000 | AJ189: 800 | AK189: 11500 | AL189: 20
AF190: 870 | AG190: 40core 4.19GHz P8 | AH190: 80Core | AI190: 911000 | AJ190: 1599.9 | AK190: 11387.5 | AL190: 19.99875
AF191: 880 | AG191: 32core 4.35GHz P8 | AH191: 32core | AI191: 381000 | AJ191: 669.4 | AK191: 11906.25 | AL191: 20.91875
AF192: 880 | AG192: 32core 4.35GHz P8 | AH192: 64core | AI192: 755000 | AJ192: 1338.8 | AK192: 11796.875 | AL192: 20.91875
AF193: 880 | AG193: 32core 4.35GHz P8 | AH193: 96core | AI193: 1144000 | AJ193: 2008.2 | AK193: 11916.66667 | AL193: 20.91875
AF194: 880 | AG194: 32core 4.35GHz P8 | AH194: 128core | AI194: 1523000 | AJ194: 2677.6 | AK194: 11898.4375 | AL194: 20.91875
AF195: 880 | AG195: 48core 4.00GHz P8 | AH195: 48Core | AI195: 518000 | AJ195: 912.6 | AK195: 10791.66667 | AL195: 19.0125
AF196: 880 | AG196: 48core 4.00GHz P8 | AH196: 96Core | AI196: 1034000 | AJ196: 1825.1 | AK196: 10770.83333 | AL196: 19.01145833
AF197: 880 | AG197: 48core 4.00GHz P8 | AH197: 144Core | AI197: 1551000 | AJ197: 2737.7 | AK197: 10770.83333 | AL197: 19.01180556
AF198: 880 | AG198: 48core 4.00GHz P8 | AH198: 192Core | AI198: 2069000 | AJ198: 3650.3 | AK198: 10776.04167 | AL198: 19.01197917
AE199: Cモデル | AF199: 870 | AG199: 32core 4.02GHz P8 | AH199: 32core | AI199: 359000 | AJ199: 630.4 | AK199: 11218.75 | AL199: 19.7
AE200: Cモデル | AF200: 870 | AG200: 32core 4.02GHz P8 | AH200: 64core | AI200: 711000 | AJ200: 1260.8 | AK200: 11109.375 | AL200: 19.7
AE201: Cモデル | AF201: 880 | AG201: 32core 4.35GHz P8 | AH201: 32core | AI201: 381000 | AJ201: 669.4 | AK201: 11906.25 | AL201: 20.91875
... 103 more rows

Sheet ＜参考資料＞パワーサイレンサーとスマートトレイ
A1: iGUAZU partnercontact <partnercontact@i-guazu.co.jp>へご依頼ください。
A2: ※Power10構成には含まれません。
A3: ■パワーサイレンサー | K3: ■スマートトレイ

Sheet vlook (hidden)
D2: コア数 | F2: プロセッサー | G2: CPW | H2: コントローラー | I2: 内蔵テープ | J2: エディション | K2: プロセッサーグループ
B3: S914 | C3: 9009-41A | D3: 4 | E3: =C3&D3 -> 9009-41A4 | F3: POWER9 #EP10 | G3: 13125 | H3: 7.2GB(圧縮時) #EJ1D | I3: 不可 | J3: #EU2C | K3: P05
B4: S914 | C4: 9009-41A | D4: 6 | E4: =C4&D4 -> 9009-41A6 | F4: POWER9 #EP11 | G4: 13083.333 | H4: 7.2GB(圧縮時) #EJ1D | I4: 不可 | J4: #EU2D | K4: P10
B5: S914 | C5: 9009-41A | D5: 8 | E5: 9009-41A8 | F5: POWER9 #EP12 | G5: 15312.5 | H5: 7.2GB(圧縮時) #EJ1D | I5: 不可 | J5: なし | K5: P10
B6: S924 | C6: 9009-42A | D6: 8 | E6: 9009-42A8 | F6: POWER9 #EP1E | G6: 18187.5 | J6: なし | K6: P20
B7: S924 | C7: 9009-42A | D7: 16 | E7: 9009-42A16 | F7: POWER9 #EP1E x2 | G7: 16781.25 | J7: なし | K7: P20
B8: S924 | C8: 9009-42A | D8: 10 | E8: 9009-42A10 | F8: POWER9 #EP1F | G8: 17450 | J8: なし | K8: P20
B9: S924 | C9: 9009-42A | D9: 20 | E9: 9009-42A20 | F9: POWER9 #EP1F x2 | G9: 15900 | J9: なし | K9: P20
B10: S924 | C10: 9009-42A | D10: 12 | E10: 9009-42A12 | F10: POWER9 #EP1G | J10: なし | K10: P20
B11: S924 | C11: 9009-42A | D11: 24 | E11: 9009-42A24 | F11: POWER9 #EP1G x2 | G11: 157112.5 | J11: なし | K11: P20
B12: S814 | C12: 8286-41A | D12: 4 | E12: 8286-41A4 | F12: POWER8 #EPXK | G12: 9875 | H12: 7.2GB(圧縮時) #EJ0P | J12: #EU2C | K12: P05
B13: S814 | C13: 8286-41A | D13: 6 | E13: 8286-41A6 | F13: POWER8 #EPX0 | G13: =59500/6 -> 9916.666667 | H13: 7.2GB(圧縮時) #EJ0P | J13: #EU2D | K13: P10
B14: S814 | C14: 8286-41A | D14: 8 | E14: 8286-41A8 | F14: POWER8 #EPX6 | G14: =85500/8 -> 10687.5 | J14: なし | K14: P10
B15: S824 | C15: 8286-42A | D15: 6 | E15: 8286-42A6 | F15: POWER8 #EPXE | G15: 12000 | J15: なし | K15: P20
B16: S824 | C16: 8286-42A | D16: 12 | E16: 8286-42A12 | F16: POWER8 #EPXE x2 | G16: =130000/12 -> 10833.33333 | J16: なし | K16: P20
B17: S824 | C17: 8286-42A | D17: 8 | E17: 8286-42A8 | F17: POWER8 #EPXF | G17: =94500/8 -> 11812.5 | J17: なし | K17: P20
B18: S824 | C18: 8286-42A | D18: 16 | E18: 8286-42A16 | F18: POWER8 #EPXF x2 | G18: =173500/16 -> 10843.75 | J18: なし | K18: P20
B19: S824 | C19: 8286-42A | D19: 24 | E19: 8286-42A24 | F19: POWER8 #EPXH x2 | G19: =230500/24 -> 9604.166667 | J19: なし | K19: P20
B20: 720 | C20: 8202-E4D | D20: 4 | E20: 8202-E4D4 | F20: POWER7+ #EPCK | G20: 7100 | H20: 175MB (#EJ01) | J20: #0777
B21: 720 | C21: 8202-E4D | D21: 6 | E21: 8202-E4D6 | F21: POWER7+ #EPCL | G21: 7066.5 | J21: #0779
B22: 720 | C22: 8202-E4D | D22: 8 | E22: 8202-E4D8 | F22: POWER7+ #EPCM | G22: 7037.5 | J22: #0779

Sheet SWMA (hidden)
B2: IBM i | C2: WQE | D2: WDS | E2: RDW | F2: PVE
A3: ライセンス | C3: TRUE | D3: FALSE | E3: TRUE
A4: ３年 | B4: TRUE | C4: TRUE | E4: TRUE | F4: TRUE
A5: １年 | B5: TRUE | C5: TRUE | E5: TRUE | F5: TRUE
